{"text_format":"1","workbook":"xlsx","n_sheets":5,"sheets":["ANAGRAFICA","stato patrimoniale+conto econ","nota integrativa","rendiconto fin.metodo indiretto","rendiconto fin.metodo diretto"],"not_rendered":{"charts":0,"images":241,"macros":1,"external_links":0,"defined_names":0,"comments":0,"pivot_tables":0},"unopened":[],"bounds":{"document_bytes":16777216,"sheet_cells":100000,"rows_first":2000,"rows_last":500,"rows_between":2000,"halvings":0,"cell_chars":16384,"cell_head_chars":4096},"cells_cut":1,"cells_raw":0,"read":"whole","date_system":"1900"}

{"sheet":"ANAGRAFICA","index":0,"n_rows":11,"n_cols":1,"rows_kept":11,"cut":false,"hidden":false,"merged":[]}
["RIFERIMENTI"]
[{"$cut":{"chars":32767,"head":"ENTE                                                                                                                                                                                                                                                                                                                                                                                                                                                                                                                                                                                                                                                                                                                                                                                                                                                                                                                                                                                                                                                                                                                                                                                                                                                                                                                                                                                                                                                                                                                                                                                                                                                                                                                                                                                                                                                                                                                                                                                                                                                                                                                                                                                                                                                                                                                                                                                                                                                                                                                                                                                                                                                                                                                                                                                                                                                                                                                                                                                                                                                                                                                                                                                                                                                                                                                                                                                                                                                                                                                                                                                                                                                                                                                                                                                                                                                                                                                                                                                                                                                                                                                                                                                                                                                            "}}]
[]
["BILANCIO"]
[]
["                                                                                                                                                    ANNO                                                                                                                                                                                                                                                                                                                                                                                                                                                                                                                                                                                                                                                                                                                                                                                                                                                                                                                                                                                                                                                                                                                                                                                                                                                                                                                                                                                                                                                                                                                                                         "]
[]
["                                                                                                                                                                                                                                                                                                                                                                                                    VALORI IN                                                                                                                                                                                                                                                                                                                        "]
[]
["SETTORI"]
["AGGIUNGI E SALVA SETTORI"]

{"sheet":"stato patrimoniale+conto econ","index":1,"n_rows":321,"n_cols":5,"rows_kept":321,"cut":false,"hidden":false,"merged":[[318,0,318,1],[320,0,320,1],[304,0,304,1],[306,0,306,1],[308,0,308,4],[309,0,309,1],[315,0,315,1],[317,0,317,4],[303,0,303,4],[272,0,272,1],[276,0,276,1],[278,0,278,4],[279,0,279,1],[285,0,285,1],[287,0,287,1],[293,0,293,1],[296,0,296,1],[298,0,298,4],[299,0,299,1],[301,0,301,1],[265,0,265,1],[226,0,226,1],[229,0,229,1],[231,0,231,4],[232,0,232,1],[239,0,239,1],[241,0,241,1],[242,0,242,1],[249,0,249,1],[253,0,253,1],[260,0,260,1],[263,0,263,1],[219,0,219,1],[181,0,181,1],[184,0,184,4],[185,0,185,1],[190,0,190,1],[194,0,194,1],[197,0,197,1],[199,0,199,4],[200,0,200,1],[204,0,204,1],[211,0,211,1],[213,0,213,1],[179,0,179,1],[141,0,141,1],[147,0,147,1],[149,0,149,4],[150,0,150,1],[152,0,152,4],[153,0,153,1],[170,0,170,1],[172,0,172,4],[173,0,173,1],[176,0,176,1],[178,0,178,4],[140,0,140,4],[95,0,95,4],[96,0,96,1],[99,0,99,1],[101,0,101,4],[102,0,102,1],[104,0,104,1],[107,0,107,4],[108,0,108,1],[114,0,114,1],[130,0,130,1],[138,0,138,1],[93,0,93,1],[47,0,47,1],[50,0,50,1],[52,0,52,4],[53,0,53,1],[60,0,60,1],[62,0,62,1],[72,0,72,1],[74,0,74,1],[83,0,83,1],[85,0,85,1],[90,0,90,1],[42,0,42,1],[1,0,1,4],[2,0,2,1],[4,0,4,4],[5,0,5,1],[14,0,14,1],[16,0,16,1],[23,0,23,1],[25,0,25,1],[26,0,26,1],[33,0,33,1],[35,0,35,1]]}
["ATTIVO"]
["A - CREDITI VERSO SOCI PER VERSAMENTI ANCORA DOVUTI"]
[null,null,2020,2019,"Variazione"]
["Crediti verso soci per versamenti ancora dovuti",null,0,0,{"$f":"C4-D4","v":0}]
["B - IMMOBILIZZAZIONI"]
["B.I - IMMOBILIZZAZIONI IMMATERIALI",null,2020,2019,"Variazione"]
["1) Costi di impianto e ampliamento",null,0,0,{"$f":"C7-D7","v":0}]
["2) Costi di sviluppo",null,0,0,{"$f":"C8-D8","v":0}]
["3) Diritti di brevetto industriale e diritti di utilizzazione delle opere dell'ingegno",null,0,0,0]
["4) Concessioni, licenze, marchi diritti simili",null,0,0,0]
["5) Avviamento",null,0,0,0]
["6) Immobilizzazioni in corso e acconti",null,0,0,0]
["7) Altre",null,0,0,0]
["Totale Immobilizzazioni Immateriali",null,0,0,0]
["Totale Immobilizzazioni Immateriali ∑",null,0,0,0]
[]
["B.II - IMMOBILIZZAZIONI MATERIALI",null,2020,2019,"Variazione"]
["1) Terreni e fabbricati",null,0,0,{"$f":"C18-D18","v":0}]
["2) Impianti e macchinari",null,0,0,0]
["3) Attrezzature industriali e commerciali",null,0,0,0]
["4) Altri beni",null,0,0,0]
["5) Immobilizzazioni in corso e acconti",null,0,0,0]
["Totale Immobilizzazioni Materiali",null,0,0,0]
["Totale immobilizzazioni Materiali ∑",null,0,0,0]
[]
["B.III - IMMOBILIZZAZIONI FINANZIARIE",null,2020,2019,"Variazione"]
["1) Partecipazioni in:",null,null,null,"Variazione"]
["a) imprese controllate",null,0,0,{"$f":"C28-D28","v":0}]
["b) imprese collegate",null,0,0,0]
["c) imprese controllanti",null,0,0,0]
["d) imprese sottoposte al controllo delle controllanti",null,0,0,0]
["d bis) altre imprese",null,0,0,0]
["Totale Partecipazioni",null,0,0,0]
["Totale Partecipazioni ∑",null,0,0,0]
[]
["2) Crediti:",null,null,null,"Variazione"]
["a) verso imprese controllate",null,0,0,{"$f":"C37-D37","v":0}]
["b) verso imprese collegate",null,0,0,0]
["c) verso imprese controllanti",null,0,0,0]
["d) verso imprese sottoposte al controllo delle controllanti",null,0,0,0]
["d bis) verso altri",null,0,0,0]
["Totale Crediti",null,0,0,0]
["Totale Crediti ∑",null,0,0,0]
[]
["3) Altri titoli",null,0,0,0]
["4) Strumenti finanziari derivati attivi",null,0,0,0]
["Totale Immobilizzazioni Finanziarie",null,0,0,0]
["Totale Immobilizzazioni Finanziarie ∑",null,0,0,0]
[]
["Totale immobilizzazioni (B)",null,0,0,0]
["Totale immobilizzazioni (B) ∑",null,0,0,0]
[]
["C - ATTIVO CIRCOLANTE"]
["C.I - RIMANENZE",null,2020,2019,"Variazione"]
["1) Materie prime, sussidiarie e di consumo",null,0,0,{"$f":"C55-D55","v":0}]
["2) Prodotti in corso lavorazione e semilavorati",null,0,0,0]
["3) Lavori in corso su ordinazione",null,0,0,0]
["4) Prodotti finiti e merci",null,0,0,0]
["5) Acconti",null,0,0,0]
["Totale Rimanenze",null,0,0,0]
["Totale Rimanenze ∑",null,0,0,0]
[]
["C.II - CREDITI",null,2020,2019,"Variazione"]
["1) verso clienti",null,0,0,{"$f":"C64-D64","v":0}]
["2) verso imprese controllate",null,0,0,0]
["3) verso imprese collegate",null,0,0,0]
["4) verso imprese controllanti",null,0,0,0]
["5) imprese sottoposte al controllo delle controllanti",null,0,0,0]
["5 bis) Crediti tributari",null,0,0,0]
["5 ter) Imposte anticipate",null,0,0,0]
["5 quater) crediti verso altri",null,0,0,0]
["Totale Crediti",null,0,0,0]
["Totale Crediti ∑",null,0,0,0]
[]
["C.III - ATTIVITA' FINANZIARIE CHE NON COSTITUISCONO IMMOBILIZZAZIONI",null,2020,2019,"Variazione"]
["1) Partecipazioni in imprese controllate",null,0,0,{"$f":"C76-D76","v":0}]
["2) Partecipazioni in imprese collegate",null,0,0,0]
["3) Partecipazioni in imprese controllanti",null,0,0,0]
["3 bis) Partecipazioni in imprese sottoposte al controllo delle controllanti",null,0,0,0]
["4) Altre partecipazioni",null,0,0,0]
["5) Strumenti finanziari derivati attivi",null,0,0,0]
["6) Altri titoli",null,0,0,0]
["Totale attività finanziarie che non costituiscono immobilizzazioni",null,0,0,0]
["Totale attività finanziarie che non costituiscono immobilizzazioni ∑",null,0,0,0]
[]
["C.IV - DISPONIBILITA' LIQUIDE",null,2020,2019,"Variazione"]
["1) Depositi bancari e postali",null,0,0,{"$f":"C87-D87","v":0}]
["2) Assegni",null,0,0,0]
["3) Denaro e valori in cassa",null,0,0,0]
["Totale disponibilità liquide",null,0,0,0]
["Totale disponibilità liquide ∑",null,0,0,0]
[]
["Totale Attivo Circolante (C)",null,0,0,0]
["Totale attivo circolante (C) ∑",null,0,0,0]
[]
["D - RATEI E RISCONTI ATTIVI"]
[null,null,2020,2019,"Variazione"]
["Ratei e risconti attivi",null,0,0,{"$f":"C98-D98","v":0}]
["Totale ratei e risconti attivi",null,0,0,0]
["Totale ratei e risconti attivi ∑",null,0,0,0]
[]
["A.B.C.D - TOTALE ATTIVO"]
[null,null,2020,2019,"Variazione"]
["Totale attivo",null,0,0,{"$f":"C104-D104","v":0}]
["Totale attivo ∑",null,0,0,0]
[]
["PASSIVO"]
["A - PATRIMONIO NETTO"]
[null,null,2020,2019,"Variazione"]
["A.I - Capitale",null,0,0,{"$f":"C110-D110","v":0}]
["A.II - Riserva da sovrapprezzo azioni",null,0,0,0]
["A.III - Riserve di rivalutazione",null,0,0,0]
["A.IV - Riserva legale",null,0,0,0]
["A.V - Riserve statutarie",null,0,0,0]
["A.VI - altre riserve distintamente indicate",null,2020,2019,"Variazione"]
["Riserva straordinaria",null,0,0,0]
["Riserva da deroghe ex articolo 2423 codice civile",null,0,0,0]
["Riserva azioni (quote) della società controllante",null,0,0,0]
["Riserva da rivalutazione delle partecipazioni",null,0,0,0]
["Versamenti in conto aumento di capitale",null,0,0,0]
["Versamenti in conto futuro aumento di capitale",null,0,0,0]
["Versamenti in conto capitale",null,0,0,0]
["Versamenti a copertura perdite",null,0,0,0]
["Riserva da riduzione capitale sociale",null,0,0,0]
["Riserva avanzo di fusione",null,0,0,0]
["Riserva per utili su cambi non realizzati",null,0,0,0]
["Riserva da conguaglio utili in corso",null,0,0,0]
["Varie altre riserve",null,0,0,0]
["Differenza da arrotondamento all'unità  di euro",null,0,0,0]
["Totale altre riserve",null,0,0,0]
["Totale altre riserve ( ∑ )",null,0,0,0]
[]
["A.VII - Riserva per operazioni di copertura dei flussi finanziari attesi",null,0,0,0]
["A.VIII - Utili (perdite) portati a nuovo",null,0,0,0]
["A.IX - Utile (perdita) dell'esercizio",null,0,0,0]
["Perdita ripianata nell'esercizio",null,0,0,0]
["A.X - Riserva negativa per azioni proprie in portafoglio",null,0,0,0]
["Totale Patrimonio netto",null,0,0,0]
["Totale Patrimonio netto ∑",null,0,0,0]
[]
["B - FONDI PER RISCHI E ONERI"]
[null,null,2020,2019,"Variazione"]
["1) Fondo per trattamento di quiescenza e oneri simili",null,0,0,{"$f":"C143-D143","v":0}]
["2) Per imposte, anche differite",null,0,0,0]
["3) Strumenti finanziari derivati passivi",null,0,0,0]
["4) Altri",null,0,0,0]
["Totale Fondi per rischi e oneri",null,0,0,0]
["Totale Fondi per rischi e oneri ∑",null,0,0,0]
[]
["C - TRATTAMENTO DI FINE RAPPORTO DI LAVORO SUBORDINATO"]
[null,null,2020,2019,"Variazione"]
["Trattamento di fine rapporto di lavoro subordinato",null,0,0,{"$f":"C152-D152","v":0}]
["D - DEBITI"]
[null,null,2020,2019,"Variazione"]
["1) Obbligazioni",null,0,0,{"$f":"C155-D155","v":0}]
["2) Obbligazioni convertibili",null,0,0,0]
["3) Debiti verso soci per finanziamenti",null,0,0,0]
["4) Debiti verso banche",null,0,0,0]
["5) Debiti verso altri finanziatori",null,0,0,0]
["6) Acconti",null,0,0,0]
["7) Debiti verso fornitori",null,0,0,0]
["8) Debiti rappresentati da titoli di credito",null,0,0,0]
["9) Debiti verso imprese controllate",null,0,0,0]
["10) Debiti verso imprese collegate",null,0,0,0]
["11) Debiti verso controllanti",null,0,0,0]
["11 bis) Debiti verso imprese sottoposte al controllo delle controllanti",null,0,0,0]
["12) Debiti tributari",null,0,0,0]
["13) Debiti verso istituti previdenziali e di sicurezza sociale",null,0,0,0]
["14) Altri debiti",null,0,0,0]
["Totale Debiti",null,0,0,0]
["Totale Debiti ∑",null,0,0,0]
[]
["E - RATEI E RISCONTI PASSIVI"]
[null,null,2020,2019,"Variazione"]
["Ratei e risconti passivi",null,0,0,{"$f":"C175-D175","v":0}]
["Totale ratei e risconti passivi",null,0,0,0]
["Totale ratei e risconti passivi ∑",null,0,0,0]
[]
["F - TOTALE PASSIVO"]
[null,null,2020,2019,"Variazione"]
["Totale passivo",null,0,0,{"$f":"C181-D181","v":0}]
["Totale passivo ∑",null,0,0,0]
[]
["CONTO ECONOMICO"]
["A - VALORE DELLA PRODUZIONE"]
[null,null,2020,2019]
["1) Ricavi delle vendite e delle prestazioni",null,0,0]
["2) Variazione delle rimanenze di prodotto in corso di lavorazione, semilavorati e finiti",null,0,0]
["3) Variazioni dei lavori in corso su ordinazione",null,0,0]
["4) Incrementi di immobilizzazioni per lavori interni",null,0,0]
["5) altri ricavi e proventi, con separata indicazione dei contributi in conto esercizio:",null,2020,2019]
["- contributi in conto esercizio",null,0,0]
["- altri ricavi e proventi",null,0,0]
["Totale altri ricavi e proventi",null,0,0]
["Totale altri ricavi e proventi ∑",null,0,0]
[]
["Totale Valore della Produzione",null,0,0]
["Totale valore della produzione ∑",null,0,0]
[]
["B - COSTI DELLA PRODUZIONE"]
[null,null,2020,2019]
["6) Per materie prime, sussidiarie, di consumo e merci",null,0,0]
["7) Costi per servizi",null,0,0]
["8) Costi per godimento di beni di terzi",null,0,0]
["9) Costi per il personale:",null,2020,2019]
["a) Costi per salari e stipendi",null,0,0]
["b) Costi per oneri sociali",null,0,0]
["c) Trattamento di fine rapporto",null,0,0]
["d) Trattamento di quiescenza e simili",null,0,0]
["e) Altri costi",null,0,0]
["Totale Costi del Personale",null,0,0]
["Totale Costi del Personale ∑",null,0,0]
[]
["10) Ammortamenti e svalutazioni:",null,2020,2019]
["a) Ammortamento delle immobilizzazioni immateriali",null,0,0]
["b) Ammortamento delle immobilizzazioni materiali",null,0,0]
["c) Altre svalutazioni delle immobilizzazioni",null,0,0]
["d) Svalutazione dei crediti compresi nell'attivo circolante e delle disponibilità liquide",null,0,0]
["Totale Ammortamenti e Svalutazioni",null,0,0]
["Totale Ammortamenti e Svalutazioni ∑",null,0,0]
[]
["11) Variazioni delle rimanenze delle materie prime, sussidiarie , di consumo e merci",null,0,0]
["12) Accantonamenti per rischi",null,0,0]
["13) Altri accantonamenti",null,0,0]
["14) Oneri diversi di gestione",null,0,0]
["Totale Costi della Produzione",null,0,0]
["Totale Costi della Produzione ∑",null,0,0]
[]
["DIFFERENZA TRA VALORE E COSTI DELLA PRODUZIONE (A-B)",null,0,0]
["DIFFERENZA TRA VALORE E COSTI DELLA PRODUZIONE (A-B) ∑",null,0,0]
[]
["C - PROVENTI E ONERI FINANZIARI"]
["15) Proventi di partecipazioni:",null,2020,2019]
["a) da imprese controllate",null,0,0]
["b) da imprese collegate",null,0,0]
["c) da imprese controllanti",null,0,0]
["d) da imprese sottoposte al controllo delle controllanti",null,0,0]
["e) da altri",null,0,0]
["Totale proventi da partecipazioni",null,0,0]
["Totale Proventi da partecipazioni ∑",null,0,0]
[]
["16) Altri proventi finanziari:",null,2020,2019]
["a) da crediti iscritti nelle immobilizzazioni:"]
["- da imprese controllate",null,0,0]
["- da imprese collegate",null,0,0]
["- da imprese controllanti",null,0,0]
["- da imprese sottoposte al controllo delle controllanti",null,0,0]
["- da altri",null,0,0]
["Totale proventi finanziari da crediti iscritti nelle immobilizzazioni",null,0,0]
["Totale proventi finanziari da crediti iscritti nelle immobilizzazioni ∑",null,0,0]
[]
["b) da titoli iscritti nelle immobilizzazioni che non costituiscono partecipazioni",null,0,0]
["c) da titoli iscritti nell'attivo circolante che non costituiscono partecipazioni",null,0,0]
["d) proventi diversi dai precedenti:"]
["- da imprese controllate",null,0,0]
["- da imprese collegate",null,0,0]
["- da imprese controllanti",null,0,0]
["- da imprese sottoposte al controllo delle controllanti",null,0,0]
["- da altri",null,0,0]
["Totale proventi diversi dai precedenti",null,0,0]
["Totale proventi diversi dai precedenti ∑",null,0,0]
[]
["Totale Altri Proventi finanziari",null,0,0]
["Totale Altri Proventi finanziari ∑",null,0,0]
[]
["17) Interessi e altri oneri finanziari:",null,2020,2019]
["- verso imprese controllate",null,0,0]
["- verso imprese collegate",null,0,0]
["- verso imprese controllanti",null,0,0]
["- verso imprese sottoposte al controllo delle controllanti",null,0,0]
["- altri",null,0,0]
["Totale interessi e altri oneri finanziari",null,0,0]
["Totale interessi e altri oneri finanziari ∑",null,0,0]
[]
["17-bis) Utile e perdite su cambi",null,0,0]
["Totale proventi e oneri finanziari (15+16-17-(17-bis))",null,0,0]
["Totale proventi e oneri finanziari (15+16-17-(17-bis)) ∑",null,0,0]
[]
["D - RETTIFICHE DI VALORE DI ATTIVITA' E PASSIVITA' FINANZIARIE"]
["Rivalutazioni:",null,2020,2019]
["a) di partecipazioni",null,0,0]
["b) di immobilizzazioni finanziarie che non costituiscono partecipazioni",null,0,0]
["c) di titoli iscritti all'attivo circolante che non costituiscono partecipazioni",null,0,0]
["d) di strumenti finanziari derivati",null,0,0]
["Totale Rivalutazioni",null,0,0]
["Totale Rivalutazioni ∑",null,0,0]
[]
["Svalutazioni:",null,2020,2019]
["a) di partecipazioni",null,0,0]
["b) di immobilizzazioni finanziarie che non costituiscono partecipazioni",null,0,0]
["c) di titoli iscritti all'attivo circolante che non costituiscono partecipazioni",null,0,0]
["d) di strumenti finanziari derivati",null,0,0]
["Totale Svalutazioni",null,0,0]
["Totale Svalutazioni ∑",null,0,0]
[]
["Totale delle rettifiche di valore di attività e passività finanziarie (18 - 19)",null,0,0]
["Totale delle rettifiche di valore di attività e passività finanziarie (18 - 19) ∑",null,0,0]
[]
["E - TOTALE DELLE PARTITE STRAORDINARIE"]
[null,null,2020,2019]
["Totale delle partite straordinarie",null,0,0]
["Totale delle partite straordinarie (∑)",null,0,0]
[]
["F - RISULTATO PRIMA DELLE IMPOSTE"]
[null,null,2020,2019]
["Risultato prima delle imposte (A-B+-C+-D+-E)",null,0,0]
["Risultato prima delle imposte (A-B+-C+-D+-E) ∑",null,0,0]
[]
["G.20 - IMPOSTE SUL REDDITO DI ESERCIZIO"]
[null,null,2020,2019]
["- imposte correnti",null,0,0]
["- imposte differite",null,0,0]
["- imposte anticipate",null,0,0]
["- imposte relative a esercizi precedenti",null,0,0]
["Totale delle imposte sul reddito dell'esercizio, correnti, differite e anticipate",null,0,0]
["Totale delle imposte sul reddito dell'esercizio, correnti, differite e anticipate ( ∑ )",null,0,0]
[]
["H.21 - UTILE (PERDITE) DI ESERCIZIO"]
[null,null,2020,2019]
["21) Utile (perdita) di esercizio",null,0,0]
["21) Utile (perdita) di esercizio (∑)",null,0,0]

{"sheet":"nota integrativa","index":2,"n_rows":1731,"n_cols":8,"rows_kept":1731,"cut":false,"hidden":false,"merged":[[1724,0,1724,1],[1729,0,1730,0],[1729,1,1730,1],[1709,0,1710,0],[1709,1,1710,1],[1712,0,1712,4],[1713,0,1713,1],[1718,0,1718,1],[1723,0,1723,4],[1703,0,1704,0],[1703,1,1704,1],[1705,0,1706,0],[1705,1,1706,1],[1707,0,1708,0],[1707,1,1708,1],[1695,0,1696,0],[1695,1,1696,1],[1698,0,1698,1],[1699,0,1700,0],[1699,1,1700,1],[1701,0,1702,0],[1701,1,1702,1],[1688,0,1689,0],[1688,1,1689,1],[1690,0,1690,1],[1691,0,1692,0],[1691,1,1692,1],[1693,0,1694,0],[1693,1,1694,1],[1681,0,1682,0],[1681,1,1682,1],[1683,0,1683,1],[1684,0,1685,0],[1684,1,1685,1],[1686,0,1687,0],[1686,1,1687,1],[1675,0,1675,1],[1676,0,1676,1],[1677,0,1678,0],[1677,1,1678,1],[1679,0,1680,0],[1679,1,1680,1],[1663,0,1666,0],[1663,1,1666,1],[1667,0,1670,0],[1667,1,1670,1],[1671,0,1674,0],[1671,1,1674,1],[1647,0,1650,0],[1647,1,1650,1],[1654,0,1654,1],[1655,0,1658,0],[1655,1,1658,1],[1659,0,1662,0],[1659,1,1662,1],[1635,0,1638,0],[1635,1,1638,1],[1639,0,1642,0],[1639,1,1642,1],[1643,0,1646,0],[1643,1,1646,1],[1629,0,1630,0],[1629,1,1630,1],[1631,0,1632,0],[1631,1,1632,1],[1633,0,1633,1],[1634,0,1634,1],[1623,0,1624,0],[1623,1,1624,1],[1625,0,1626,0],[1625,1,1626,1],[1627,0,1628,0],[1627,1,1628,1],[1616,0,1617,0],[1616,1,1617,1],[1618,0,1619,0],[1618,1,1619,1],[1620,0,1620,1],[1621,0,1622,0],[1621,1,1622,1],[1609,0,1610,0],[1609,1,1610,1],[1611,0,1611,1],[1612,0,1613,0],[1612,1,1613,1],[1614,0,1615,0],[1614,1,1615,1],[1602,0,1602,1],[1603,0,1604,0],[1603,1,1604,1],[1605,0,1606,0],[1605,1,1606,1],[1607,0,1608,0],[1607,1,1608,1],[1596,0,1597,0],[1596,1,1597,1],[1598,0,1599,0],[1598,1,1599,1],[1600,0,1601,0],[1600,1,1601,1],[1589,0,1590,0],[1589,1,1590,1],[1591,0,1592,0],[1591,1,1592,1],[1593,0,1593,1],[1594,0,1595,0],[1594,1,1595,1],[1582,0,1582,4],[1583,0,1583,1],[1584,0,1584,1],[1585,0,1586,0],[1585,1,1586,1],[1587,0,1588,0],[1587,1,1588,1],[1557,0,1560,0],[1557,1,1560,1],[1562,0,1562,4],[1563,0,1563,1],[1567,0,1567,1],[1573,0,1573,1],[1545,0,1548,0],[1545,1,1548,1],[1549,0,1552,0],[1549,1,1552,1],[1553,0,1556,0],[1553,1,1556,1],[1533,0,1536,0],[1533,1,1536,1],[1537,0,1540,0],[1537,1,1540,1],[1541,0,1544,0],[1541,1,1544,1],[1521,0,1524,0],[1521,1,1524,1],[1525,0,1528,0],[1525,1,1528,1],[1529,0,1532,0],[1529,1,1532,1],[1509,0,1512,0],[1509,1,1512,1],[1513,0,1516,0],[1513,1,1516,1],[1517,0,1520,0],[1517,1,1520,1],[1489,0,1489,1],[1494,0,1494,1],[1500,0,1500,1],[1501,0,1504,0],[1501,1,1504,1],[1505,0,1508,0],[1505,1,1508,1],[1468,0,1469,0],[1468,1,1469,1],[1473,0,1473,1],[1474,0,1474,1],[1479,0,1479,1],[1486,0,1486,1],[1455,0,1459,0],[1455,1,1459,1],[1460,0,1464,0],[1460,1,1464,1],[1466,0,1466,4],[1467,0,1467,1],[1440,0,1444,0],[1440,1,1444,1],[1445,0,1449,0],[1445,1,1449,1],[1450,0,1454,0],[1450,1,1454,1],[1425,0,1429,0],[1425,1,1429,1],[1430,0,1434,0],[1430,1,1434,1],[1435,0,1439,0],[1435,1,1439,1],[1410,0,1414,0],[1410,1,1414,1],[1415,0,1419,0],[1415,1,1419,1],[1420,0,1424,0],[1420,1,1424,1],[1395,0,1399,0],[1395,1,1399,1],[1400,0,1404,0],[1400,1,1404,1],[1405,0,1409,0],[1405,1,1409,1],[1379,0,1383,0],[1379,1,1383,1],[1384,0,1388,0],[1384,1,1388,1],[1389,0,1389,1],[1390,0,1394,0],[1390,1,1394,1],[1364,0,1368,0],[1364,1,1368,1],[1369,0,1373,0],[1369,1,1373,1],[1374,0,1378,0],[1374,1,1378,1],[1349,0,1353,0],[1349,1,1353,1],[1354,0,1358,0],[1354,1,1358,1],[1359,0,1363,0],[1359,1,1363,1],[1334,0,1338,0],[1334,1,1338,1],[1339,0,1343,0],[1339,1,1343,1],[1344,0,1348,0],[1344,1,1348,1],[1319,0,1323,0],[1319,1,1323,1],[1324,0,1328,0],[1324,1,1328,1],[1329,0,1333,0],[1329,1,1333,1],[1299,0,1305,0],[1299,1,1305,1],[1306,0,1312,0],[1306,1,1312,1],[1313,0,1313,1],[1314,0,1318,0],[1314,1,1318,1],[1278,0,1284,0],[1278,1,1284,1],[1285,0,1291,0],[1285,1,1291,1],[1292,0,1298,0],[1292,1,1298,1],[1262,0,1262,4],[1263,0,1263,1],[1264,0,1270,0],[1264,1,1270,1],[1271,0,1277,0],[1271,1,1277,1],[1251,0,1252,0],[1251,1,1252,1],[1253,0,1254,0],[1253,1,1254,1],[1255,0,1261,0],[1255,1,1261,1],[1245,0,1246,0],[1245,1,1246,1],[1247,0,1248,0],[1247,1,1248,1],[1249,0,1250,0],[1249,1,1250,1],[1239,0,1240,0],[1239,1,1240,1],[1241,0,1242,0],[1241,1,1242,1],[1243,0,1244,0],[1243,1,1244,1],[1223,0,1223,1],[1224,0,1230,0],[1224,1,1230,1],[1231,0,1237,0],[1231,1,1237,1],[1238,0,1238,1],[1207,0,1208,0],[1207,1,1208,1],[1209,0,1215,0],[1209,1,1215,1],[1216,0,1222,0],[1216,1,1222,1],[1200,0,1201,0],[1200,1,1201,1],[1202,0,1202,1],[1203,0,1204,0],[1203,1,1204,1],[1205,0,1206,0],[1205,1,1206,1],[1194,0,1195,0],[1194,1,1195,1],[1196,0,1197,0],[1196,1,1197,1],[1198,0,1199,0],[1198,1,1199,1],[1187,0,1188,0],[1187,1,1188,1],[1189,0,1190,0],[1189,1,1190,1],[1191,0,1191,1],[1192,0,1193,0],[1192,1,1193,1],[1180,0,1181,0],[1180,1,1181,1],[1182,0,1182,1],[1183,0,1184,0],[1183,1,1184,1],[1185,0,1186,0],[1185,1,1186,1],[1173,0,1173,1],[1174,0,1175,0],[1174,1,1175,1],[1176,0,1177,0],[1176,1,1177,1],[1178,0,1179,0],[1178,1,1179,1],[1164,0,1165,0],[1164,1,1165,1],[1166,0,1167,0],[1166,1,1167,1],[1168,0,1172,0],[1168,1,1172,1],[1158,0,1159,0],[1158,1,1159,1],[1160,0,1161,0],[1160,1,1161,1],[1162,0,1163,0],[1162,1,1163,1],[1141,0,1141,1],[1142,0,1148,0],[1142,1,1148,1],[1149,0,1155,0],[1149,1,1155,1],[1156,0,1157,0],[1156,1,1157,1],[1135,0,1136,0],[1135,1,1136,1],[1137,0,1138,0],[1137,1,1138,1],[1139,0,1140,0],[1139,1,1140,1],[1129,0,1130,0],[1129,1,1130,1],[1131,0,1132,0],[1131,1,1132,1],[1133,0,1134,0],[1133,1,1134,1],[1123,0,1124,0],[1123,1,1124,1],[1125,0,1126,0],[1125,1,1126,1],[1127,0,1128,0],[1127,1,1128,1],[1106,0,1112,0],[1106,1,1112,1],[1113,0,1119,0],[1113,1,1119,1],[1120,0,1120,1],[1121,0,1122,0],[1121,1,1122,1],[1086,0,1091,0],[1086,1,1091,1],[1092,0,1099,0],[1092,1,1099,1],[1100,0,1105,0],[1100,1,1105,1],[1078,0,1078,4],[1079,0,1079,1],[1080,0,1083,0],[1080,1,1083,1],[1084,0,1084,4],[1085,0,1085,1],[1058,0,1061,0],[1058,1,1061,1],[1062,0,1065,0],[1062,1,1065,1],[1066,0,1077,0],[1066,1,1077,1],[1045,0,1051,0],[1045,1,1051,1],[1052,0,1052,4],[1053,0,1053,1],[1054,0,1057,0],[1054,1,1057,1],[1024,0,1030,0],[1024,1,1030,1],[1031,0,1037,0],[1031,1,1037,1],[1038,0,1044,0],[1038,1,1044,1],[1007,0,1013,0],[1007,1,1013,1],[1014,0,1018,0],[1014,1,1018,1],[1019,0,1023,0],[1019,1,1023,1],[988,0,994,0],[988,1,994,1],[995,0,999,0],[995,1,999,1],[1000,0,1006,0],[1000,1,1006,1],[969,0,975,0],[969,1,975,1],[976,0,980,0],[976,1,980,1],[981,0,987,0],[981,1,987,1],[950,0,956,0],[950,1,956,1],[957,0,961,0],[957,1,961,1],[962,0,968,0],[962,1,968,1],[928,0,928,1],[929,0,935,0],[929,1,935,1],[936,0,942,0],[936,1,942,1],[943,0,949,0],[943,1,949,1],[907,0,913,0],[907,1,913,1],[914,0,920,0],[914,1,920,1],[921,0,927,0],[921,1,927,1],[899,0,900,0],[899,1,900,1],[902,0,902,1],[903,0,904,0],[903,1,904,1],[905,0,906,0],[905,1,906,1],[887,0,893,0],[887,1,893,1],[895,0,895,4],[896,0,896,1],[897,0,898,0],[897,1,898,1],[866,0,872,0],[866,1,872,1],[873,0,879,0],[873,1,879,1],[880,0,886,0],[880,1,886,1],[845,0,851,0],[845,1,851,1],[852,0,858,0],[852,1,858,1],[859,0,865,0],[859,1,865,1],[829,0,835,0],[829,1,835,1],[836,0,842,0],[836,1,842,1],[843,0,843,4],[844,0,844,1],[815,0,816,0],[815,1,816,1],[817,0,820,0],[817,1,820,1],[821,0,821,1],[822,0,828,0],[822,1,828,1],[799,0,802,0],[799,1,802,1],[803,0,811,0],[803,1,811,1],[812,0,812,1],[813,0,814,0],[813,1,814,1],[793,0,794,0],[793,1,794,1],[795,0,796,0],[795,1,796,1],[797,0,798,0],[797,1,798,1],[784,0,785,0],[784,1,785,1],[786,0,789,0],[786,1,789,1],[790,0,790,1],[791,0,792,0],[791,1,792,1],[777,0,777,1],[778,0,779,0],[778,1,779,1],[780,0,781,0],[780,1,781,1],[782,0,783,0],[782,1,783,1],[769,0,770,0],[769,1,770,1],[771,0,772,0],[771,1,772,1],[773,0,776,0],[773,1,776,1],[760,0,763,0],[760,1,763,1],[764,0,764,1],[765,0,766,0],[765,1,766,1],[767,0,768,0],[767,1,768,1],[754,0,755,0],[754,1,755,1],[756,0,757,0],[756,1,757,1],[758,0,759,0],[758,1,759,1],[745,0,746,0],[745,1,746,1],[747,0,750,0],[747,1,750,1],[751,0,751,1],[752,0,753,0],[752,1,753,1],[739,0,740,0],[739,1,740,1],[741,0,742,0],[741,1,742,1],[743,0,744,0],[743,1,744,1],[723,0,729,0],[723,1,729,1],[730,0,736,0],[730,1,736,1],[737,0,737,1],[738,0,738,1],[702,0,708,0],[702,1,708,1],[709,0,715,0],[709,1,715,1],[716,0,722,0],[716,1,722,1],[681,0,687,0],[681,1,687,1],[688,0,694,0],[688,1,694,1],[695,0,701,0],[695,1,701,1],[660,0,666,0],[660,1,666,1],[667,0,673,0],[667,1,673,1],[674,0,680,0],[674,1,680,1],[639,0,645,0],[639,1,645,1],[646,0,652,0],[646,1,652,1],[653,0,659,0],[653,1,659,1],[618,0,624,0],[618,1,624,1],[625,0,631,0],[625,1,631,1],[632,0,638,0],[632,1,638,1],[597,0,603,0],[597,1,603,1],[604,0,610,0],[604,1,610,1],[611,0,617,0],[611,1,617,1],[576,0,582,0],[576,1,582,1],[583,0,589,0],[583,1,589,1],[590,0,596,0],[590,1,596,1],[555,0,561,0],[555,1,561,1],[562,0,568,0],[562,1,568,1],[569,0,575,0],[569,1,575,1],[534,0,540,0],[534,1,540,1],[541,0,547,0],[541,1,547,1],[548,0,554,0],[548,1,554,1],[521,0,522,0],[521,1,522,1],[523,0,526,0],[523,1,526,1],[527,0,533,0],[527,1,533,1],[515,0,516,0],[515,1,516,1],[517,0,518,0],[517,1,518,1],[519,0,520,0],[519,1,520,1],[506,0,509,0],[506,1,509,1],[510,0,510,1],[511,0,512,0],[511,1,512,1],[513,0,514,0],[513,1,514,1],[494,0,497,0],[494,1,497,1],[498,0,501,0],[498,1,501,1],[502,0,505,0],[502,1,505,1],[481,0,481,1],[482,0,485,0],[482,1,485,1],[486,0,489,0],[486,1,489,1],[490,0,493,0],[490,1,493,1],[459,0,466,0],[459,1,466,1],[467,0,473,0],[467,1,473,1],[474,0,480,0],[474,1,480,1],[429,0,438,0],[429,1,438,1],[439,0,448,0],[439,1,448,1],[449,0,458,0],[449,1,458,1],[400,0,406,0],[400,1,406,1],[407,0,407,1],[408,0,416,0],[408,1,416,1],[417,0,428,0],[417,1,428,1],[379,0,385,0],[379,1,385,1],[386,0,392,0],[386,1,392,1],[393,0,399,0],[393,1,399,1],[363,0,369,0],[363,1,369,1],[370,0,370,4],[371,0,371,1],[372,0,378,0],[372,1,378,1],[354,0,354,1],[355,0,356,0],[355,1,356,1],[357,0,358,0],[357,1,358,1],[359,0,362,0],[359,1,362,1],[318,0,329,0],[318,1,329,1],[330,0,341,0],[330,1,341,1],[342,0,353,0],[342,1,353,1],[289,0,292,0],[289,1,292,1],[293,0,293,1],[294,0,305,0],[294,1,305,1],[306,0,317,0],[306,1,317,1],[283,0,284,0],[283,1,284,1],[285,0,286,0],[285,1,286,1],[287,0,288,0],[287,1,288,1],[274,0,275,0],[274,1,275,1],[276,0,279,0],[276,1,279,1],[280,0,280,1],[281,0,282,0],[281,1,282,1],[267,0,267,1],[268,0,269,0],[268,1,269,1],[270,0,271,0],[270,1,271,1],[272,0,273,0],[272,1,273,1],[259,0,260,0],[259,1,260,1],[261,0,262,0],[261,1,262,1],[263,0,266,0],[263,1,266,1],[250,0,253,0],[250,1,253,1],[254,0,254,1],[255,0,256,0],[255,1,256,1],[257,0,258,0],[257,1,258,1],[244,0,245,0],[244,1,245,1],[246,0,247,0],[246,1,247,1],[248,0,249,0],[248,1,249,1],[235,0,236,0],[235,1,236,1],[237,0,240,0],[237,1,240,1],[241,0,241,1],[242,0,243,0],[242,1,243,1],[228,0,228,1],[229,0,230,0],[229,1,230,1],[231,0,232,0],[231,1,232,1],[233,0,234,0],[233,1,234,1],[220,0,221,0],[220,1,221,1],[222,0,225,0],[222,1,225,1],[226,0,226,1],[227,0,227,1],[212,0,215,0],[212,1,215,1],[216,0,217,0],[216,1,217,1],[218,0,219,0],[218,1,219,1],[206,0,207,0],[206,1,207,1],[208,0,209,0],[208,1,209,1],[210,0,211,0],[210,1,211,1],[200,0,201,0],[200,1,201,1],[202,0,203,0],[202,1,203,1],[204,0,205,0],[204,1,205,1],[194,0,195,0],[194,1,195,1],[196,0,197,0],[196,1,197,1],[198,0,199,0],[198,1,199,1],[188,0,189,0],[188,1,189,1],[190,0,191,0],[190,1,191,1],[192,0,193,0],[192,1,193,1],[181,0,181,1],[182,0,183,0],[182,1,183,1],[184,0,185,0],[184,1,185,1],[186,0,187,0],[186,1,187,1],[166,0,169,0],[166,1,169,1],[170,0,170,1],[171,0,175,0],[171,1,175,1],[176,0,180,0],[176,1,180,1],[160,0,161,0],[160,1,161,1],[162,0,163,0],[162,1,163,1],[164,0,165,0],[164,1,165,1],[146,0,149,0],[146,1,149,1],[150,0,150,1],[151,0,157,0],[151,1,157,1],[158,0,159,0],[158,1,159,1],[140,0,141,0],[140,1,141,1],[142,0,143,0],[142,1,143,1],[144,0,145,0],[144,1,145,1],[131,0,132,0],[131,1,132,1],[133,0,136,0],[133,1,136,1],[137,0,137,1],[138,0,139,0],[138,1,139,1],[124,0,124,1],[125,0,126,0],[125,1,126,1],[127,0,128,0],[127,1,128,1],[129,0,130,0],[129,1,130,1],[116,0,117,0],[116,1,117,1],[118,0,119,0],[118,1,119,1],[120,0,123,0],[120,1,123,1],[105,0,111,0],[105,1,111,1],[112,0,113,0],[112,1,113,1],[114,0,115,0],[114,1,115,1],[97,0,98,0],[97,1,98,1],[99,0,102,0],[99,1,102,1],[103,0,103,1],[104,0,104,1],[90,0,90,1],[91,0,92,0],[91,1,92,1],[93,0,94,0],[93,1,94,1],[95,0,96,0],[95,1,96,1],[82,0,83,0],[82,1,83,1],[84,0,85,0],[84,1,85,1],[86,0,89,0],[86,1,89,1],[73,0,76,0],[73,1,76,1],[77,0,77,1],[78,0,79,0],[78,1,79,1],[80,0,81,0],[80,1,81,1],[67,0,68,0],[67,1,68,1],[69,0,70,0],[69,1,70,1],[71,0,72,0],[71,1,72,1],[58,0,59,0],[58,1,59,1],[60,0,63,0],[60,1,63,1],[64,0,64,1],[65,0,66,0],[65,1,66,1],[51,0,51,1],[52,0,53,0],[52,1,53,1],[54,0,55,0],[54,1,55,1],[56,0,57,0],[56,1,57,1],[43,0,44,0],[43,1,44,1],[45,0,46,0],[45,1,46,1],[47,0,50,0],[47,1,50,1],[34,0,37,0],[34,1,37,1],[38,0,38,1],[39,0,40,0],[39,1,40,1],[41,0,42,0],[41,1,42,1],[28,0,29,0],[28,1,29,1],[30,0,31,0],[30,1,31,1],[32,0,33,0],[32,1,33,1],[19,0,20,0],[19,1,20,1],[21,0,24,0],[21,1,24,1],[25,0,25,1],[26,0,27,0],[26,1,27,1],[12,0,12,1],[13,0,14,0],[13,1,14,1],[15,0,16,0],[15,1,16,1],[17,0,18,0],[17,1,18,1],[1,0,1,4],[2,0,2,1],[3,0,9,0],[3,1,9,1],[10,0,10,4],[11,0,11,1]]}
["ATTIVO"]
["A - CREDITI VERSO SOCI PER VERSAMENTI ANCORA DOVUTI"]
[null,null,2020,2019]
["Crediti verso soci per versamenti ancora dovuti",null,"              Dettaglio","              Dettaglio"]
[null,null,"Incrementi","Incrementi"]
[null,null,0,0]
[null,null,"Decrementi","Decrementi"]
[null,null,0,0]
[null,null,"            Variazione Stock","           Variazione Stock"]
[null,null,0,0]
["B - IMMOBILIZZAZIONI"]
["B.I - IMMOBILIZZAZIONI IMMATERIALI",null,2020,2019]
["1) Costi di impianto e ampliamento:"]
["- incremento voce per acquisizioni",null,"Incrementi","Incrementi"]
[null,null,0,0]
["- incremento voce per rivalutazioni",null,"Incrementi","Incrementi"]
[null,null,0,0]
["- decremento voce per cessione",null,"Decrementi","Decrementi"]
[null,null,0,0]
["- decremento voce per svalutazioni e ammortamenti",null,"Decrementi","Decrementi"]
[null,null,0,0]
["- incremento (decremento) per riclassifiche",null,"Incrementi","Incrementi"]
[null,null,0,0]
[null,null,"Decrementi","Decrementi"]
[null,null,0,0]
["2) Costi di sviluppo:"]
["- incremento voce per acquisizioni",null,"Incrementi","Incrementi"]
[null,null,0,0]
["- incremento voce per rivalutazioni",null,"Incrementi","Incrementi"]
[null,null,0,0]
["- decremento voce per cessione",null,"Decrementi","Decrementi"]
[null,null,0,0]
["- decremento voce per svalutazioni e ammortamenti",null,"Decrementi","Decrementi"]
[null,null,0,0]
["- incremento (decremento) per riclassifiche",null,"Incrementi","Incrementi"]
[null,null,0,0]
[null,null,"Decrementi","Decrementi"]
[null,null,0,0]
["3) Diritti di brevetto industriale e diritti di utilizzazione delle opere dell'ingegno:"]
["- incremento voce per acquisizioni",null,"Incrementi","Incrementi"]
[null,null,0,0]
["- incremento voce per rivalutazioni",null,"Incrementi","Incrementi"]
[null,null,0,0]
["- decremento voce per cessione",null,"Decrementi","Decrementi"]
[null,null,0,0]
["- decremento voce per svalutazioni e ammortamenti",null,"Decrementi","Decrementi"]
[null,null,0,0]
["- incremento (decremento) per riclassifiche",null,"Incrementi","Incrementi"]
[null,null,0,0]
[null,null,"Decrementi","Decrementi"]
[null,null,0,0]
["4) Concessioni, licenze, marchi diritti simili:"]
["- incremento voce per acquisizioni",null,"Incrementi","Incrementi"]
[null,null,0,0]
["- incremento voce per rivalutazioni",null,"Incrementi","Incrementi"]
[null,null,0,0]
["- decremento voce per cessione",null,"Decrementi","Decrementi"]
[null,null,0,0]
["- decremento voce per svalutazioni e ammortamenti",null,"Decrementi","Decrementi"]
[null,null,0,0]
["- incremento ( decremento) per riclassifiche",null,"Incrementi","Incrementi"]
[null,null,0,0]
[null,null,"Decrementi","Decrementi"]
[null,null,0,0]
["5) Avviamento:"]
["- incremento voce per acquisizioni",null,"Incrementi","Incrementi"]
[null,null,0,0]
["- incremento voce per rivalutazioni",null,"Incrementi","Incrementi"]
[null,null,0,0]
["- decremento voce per cessione",null,"Decrementi","Decrementi"]
[null,null,0,0]
["- decremento voce per svalutazioni e ammortamenti",null,"Decrementi","Decrementi"]
[null,null,0,0]
["- incremento (decremento) per riclassifiche",null,"Incrementi","Incrementi"]
[null,null,0,0]
[null,null,"Decrementi","Decrementi"]
[null,null,0,0]
["6) Immobilizzazioni in corso e acconti:"]
["- incremento voce per acquisizioni",null,"Incrementi","Incrementi"]
[null,null,0,0]
["- incremento voce per rivalutazioni",null,"Incrementi","Incrementi"]
[null,null,0,0]
["- decremento voce per cessione",null,"Decrementi","Decrementi"]
[null,null,0,0]
["- decremento voce per svalutazioni e ammortamenti",null,"Decrementi","Decrementi"]
[null,null,0,0]
["- incremento (decremento) per riclassifiche",null,"Incrementi","Incrementi"]
[null,null,0,0]
[null,null,"Decrementi","Decrementi"]
[null,null,0,0]
["7) Altre:"]
["- incremento voce per acquisizioni",null,"Incrementi","Incrementi"]
[null,null,0,0]
["- incremento voce per rivalutazioni",null,"Incrementi","Incrementi"]
[null,null,0,0]
["- decremento voce per cessione",null,"Decrementi","Decrementi"]
[null,null,0,0]
["- decremento voce per svalutazioni e ammortamenti",null,"Decrementi","Decrementi"]
[null,null,0,0]
["- incremento (decremento) per riclassifiche",null,"Incrementi","Incrementi"]
[null,null,0,0]
[null,null,"Decrementi","Decrementi"]
[null,null,0,0]
["B.II - IMMOBILIZZAZIONI MATERIALI",null,2020,2019,null,null,{"$f":"E106+E108-E110-E112+E114-E116","v":0},{"$f":"F104+F213","v":0}]
["1) Terreni e fabbricati:"]
["- beni gratui devolvibili relativi a terreni e fabbricati",null,"         Dettaglio","         Dettaglio"]
[null,null,"Acquisizioni","Acquisizioni"]
[null,null,0,0]
[null,null,"Dismissioni","Dismissioni"]
[null,null,0,0]
[null,null,"        Variazione Stock","       Variazione Stock"]
[null,null,0,0]
["- incremento voce per acquisizioni",null,"Incrementi","Incrementi"]
[null,null,0,0]
["- incremento voce per rivalutazioni",null,"Incrementi","Incrementi"]
[null,null,0,0]
["- decremento voce per cessione",null,"Decrementi","Decrementi"]
[null,null,0,0]
["- decremento voce per svalutazioni e ammortamenti",null,"Decrementi","Decrementi"]
[null,null,0,0]
["- incremento (decremento) per riclassifiche",null,"Incrementi","Incrementi"]
[null,null,0,0]
[null,null,"Decrementi","Decrementi"]
[null,null,0,0]
["2) Impianti e macchinari:"]
["- incremento voce per acquisizioni",null,"Incrementi","Incrementi"]
[null,null,0,0]
["- incremento voce per rivalutazioni",null,"Incrementi","Incrementi"]
[null,null,0,0]
["- decremento voce per cessione",null,"Decrementi","Decrementi"]
[null,null,0,0]
["- decremento voce per svalutazioni e ammortamenti",null,"Decrementi","Decrementi"]
[null,null,0,0]
["- incremento (decremento) per riclassifiche",null,"Incrementi","Incrementi"]
[null,null,0,0]
[null,null,"Decrementi","Decrementi"]
[null,null,0,0]
["3) Attrezzature industriali e commerciali:"]
["- incremento voce per acquisizioni",null,"Incrementi","Incrementi"]
[null,null,0,0]
["- incremento voce per rivalutazioni",null,"Incrementi","Incrementi"]
[null,null,0,0]
["- decremento voce per cessione",null,"Decrementi","Decrementi"]
[null,null,0,0]
["- decremento voce per svalutazioni e ammortamenti",null,"Decrementi","Decrementi"]
[null,null,0,0]
["- incremento (decremento) per riclassifiche",null,"Incrementi","Incrementi"]
[null,null,0,0]
[null,null,"Decrementi","Decrementi"]
[null,null,0,0]
["4) Altri beni:"]
["- beni gratui devolvibili relativi ad altri beni",null,"          Dettaglio","         Dettaglio"]
[null,null,"Acquisizioni","Acquisizioni"]
[null,null,0,0]
[null,null,"Dismissioni","Dismissioni"]
[null,null,0,0]
[null,null,"        Variazione Stock","    Variazione Stock"]
[null,null,0,0]
["- incremento voce per acquisizioni",null,"Incrementi","Incrementi"]
[null,null,0,0]
["- incremento voce per rivalutazioni",null,"Incrementi","Incrementi"]
[null,null,0,0]
["- decremento voce per cessione",null,"Decrementi","Decrementi"]
[null,null,0,0]
["- decremento voce per svalutazioni e ammortamenti",null,"Decrementi","Decrementi"]
[null,null,0,0]
["- incremento (decremento) per riclassifiche",null,"Incrementi","Incrementi"]
[null,null,0,0]
[null,null,"Decrementi","Decrementi"]
[null,null,0,0]
["5) Immobilizzazioni in corso e acconti:"]
["- immobilizzazioni in corso ed acconti relativi terreni e fabbricati",null,"         Dettaglio","         Dettaglio"]
[null,null,"Incrementi","Incrementi"]
[null,null,0,0]
[null,null,"Decrementi","Decrementi"]
[null,null,0,0]
["- immobilizzazioni in corso e acconti relative ad altri beni",null,"         Dettaglio","          Dettaglio"]
[null,null,"Incrementi","Incrementi"]
[null,null,0,0]
[null,null,"Decrementi","Decrementi"]
[null,null,0,0]
["contributi in conto impianti:"]
["TRASFERIMENTI IN CONTO CAPITALE DA UNIONE EUROPEA E ALTRE ISTITUZIONI ESTERE",null,"Valore","Valore"]
[null,null,0,0]
["TRASFERIMENTI IN CONTO CAPITALE DA FAMIGLIE E ISTITUZIONI SOCIALI",null,"Valore","Valore"]
[null,null,0,0]
["TRASFERIMENTI IN CONTO CAPITALE DA IMPRESE PRIVATE",null,"Valore","Valore"]
[null,null,0,0]
["TRASFERIMENTI IN CONTO CAPITALE DA IMPRESE PUBBLICHE NAZIONALI",null,"Valore","Valore"]
[null,null,0,0]
["TRASFERIMENTI IN CONTO CAPITALE DA STATO",null,"Valore","Valore"]
[null,null,0,0]
["TRASFERIMENTI IN CONTO CAPITALE DA ALTRI ENTI DELL'AMMINISTRAZIONE CENTRALE",null,"Valore","Valore"]
[null,null,0,0]
["TRASFERIMENTI IN CONTO CAPITALE DA REGIONI E PROVINCIE AUTONOME",null,"Valore","Valore"]
[null,null,0,0]
["TRASFERIMENTI IN CONTO CAPITALE DA PROVINCE E CITTà METROPOLITANE",null,"Valore","Valore"]
[null,null,0,0]
["TRASFERIMENTI IN CONTO CAPITALE DA COMUNI",null,"Valore","Valore"]
[null,null,0,0]
["TRASFERIMENTI IN CONTO CAPITALE DA A.S.L., AZIENDE OSPEDALIERE E IRCCS",null,"Valore","Valore"]
[null,null,0,0]
["TRASFERIMENTI IN CONTO CAPITALE DA CONSORZI E FORME ASSOCIATIVE",null,"Valore","Valore"]
[null,null,0,0]
["TRASFERIMENTI IN CONTO CAPITALE DA AZIENDE, ISTITUZIONI, SOCIETà E FONDAZIONI PARTECIPATE A LIVELLO LOCALE",null,"Valore","Valore"]
[null,null,0,0]
["TRASFERIMENTI IN CONTO CAPITALE DA COMUNITà MONTANE E ALTRE UNIONI DI ENTI LOCALI",null,"Valore","Valore"]
[null,null,0,0]
["TRASFERIMENTI IN CONTO CAPITALE DA ENTI DIPENDENTI",null,"Valore","Valore"]
[null,null,0,0]
["TRASFERIMENTI IN CONTO CAPITALE DA ALTRI ENTI DELL'AMMINISTRAZIONE LOCALE",null,"Valore","Valore"]
[null,null,0,0]
["- incremento per acquisizioni",null,"Incrementi","Incrementi"]
[null,null,0,0]
[null,null,"Valore","Valore"]
[null,null,0,0]
["- incremento voce per rivalutazioni",null,"Incrementi","Incrementi"]
[null,null,0,0]
["- decremento voce per cessione",null,"Decrementi","Decrementi"]
[null,null,0,0]
["- decremento voce per svalutazioni e ammortamenti",null,"Decrementi","Decrementi"]
[null,null,0,0]
["- incremento (decremento) per riclassifiche",null,"Incrementi","Incrementi"]
[null,null,0,0]
[null,null,"Decrementi","Decrementi"]
[null,null,0,0]
["B.III - IMMOBILIZZAZIONI FINANZIARIE",null,2020,2019]
["1) Partecipazioni in:"]
["a) imprese controllate"]
["- incremento voce per acquisizioni, ivi incluse le ricostituzioni di capitale",null,"Incrementi","Incrementi"]
[null,null,0,0]
["- incremento voce per rivalutazioni",null,"Incrementi","Incrementi"]
[null,null,0,0]
["- decremento voce per cessione",null,"Decrementi","Decrementi"]
[null,null,0,0]
["- decremento voce per svalutazioni",null,"Decrementi","Decrementi"]
[null,null,0,0]
["- incremento (decremento) per riclassifiche",null,"Incrementi","Incrementi"]
[null,null,0,0]
[null,null,"Decrementi","Decrementi"]
[null,null,0,0]
["b) imprese collegate"]
["- incremento voce per acquisizioni, ivi incluse le ricostituzioni di capitale",null,"Incrementi","Incrementi"]
[null,null,0,0]
["- incremento voce per rivalutazioni",null,"Incrementi","Incrementi"]
[null,null,0,0]
["- decremento voce per cessione",null,"Decrementi","Decrementi"]
[null,null,0,0]
["- decremento voce per svalutazioni",null,"Decrementi","Decrementi"]
[null,null,0,0]
["- incremento (decremento) per riclassifiche",null,"Incrementi","Incrementi"]
[null,null,0,0]
[null,null,"Decrementi","Decrementi"]
[null,null,0,0]
["c) imprese controllanti"]
["- incremento voce per acquisizioni, ivi incluse le ricostituzioni di capitale",null,"Incrementi","Incrementi"]
[null,null,0,0]
["- incremento voce per rivalutazioni",null,"Incrementi","Incrementi"]
[null,null,0,0]
["- decremento voce per cessione",null,"Decrementi","Decrementi"]
[null,null,0,0]
["- decremento voce per svalutazioni",null,"Decrementi","Decrementi"]
[null,null,0,0]
["- incremento (decremento) per riclassifiche",null,"Incrementi","Incrementi"]
[null,null,0,0]
[null,null,"Decrementi","Decrementi"]
[null,null,0,0]
["d) imprese sottoposte al controllo delle controllanti"]
["- incremento voce per acquisizioni, ivi incluse le ricostituzioni di capitale",null,"Incrementi","Incrementi"]
[null,null,0,0]
["- incremento voce per rivalutazioni",null,"Incrementi","Incrementi"]
[null,null,0,0]
["- decremento voce per cessione",null,"Decrementi","Decrementi"]
[null,null,0,0]
["- decremento voce per svalutazioni",null,"Decrementi","Decrementi"]
[null,null,0,0]
["- incremento (decremento) per riclassifiche",null,"Incrementi","Incrementi"]
[null,null,0,0]
[null,null,"Decrementi","Decrementi"]
[null,null,0,0]
["d bis) altre imprese"]
["- incremento voce per acquisizioni, ivi incluse le ricostituzioni di capitale",null,"Incrementi","Incrementi"]
[null,null,0,0]
["- incremento voce per rivalutazioni",null,"Incrementi","Incrementi"]
[null,null,0,0]
["- decremento voce per cessione",null,"Decrementi","Decrementi"]
[null,null,0,0]
["- decremento voce per svalutazioni",null,"Decrementi","Decrementi"]
[null,null,0,0]
["- incremento (decremento) per riclassifiche",null,"Incrementi","Incrementi"]
[null,null,0,0]
[null,null,"Decrementi","Decrementi"]
[null,null,0,0]
["2) Crediti:"]
["a) verso imprese controllate",null,"     Variazione Stock","         Variazione Stock"]
[null,null,0,0]
[null,null,"Incrementi Commerciali","Incrementi Commerciali"]
[null,null,0,0]
[null,null,"Incrementi Finanziari","Incrementi Finanziari"]
[null,null,0,0]
[null,null,"Decrementi Commerciali","Decrementi Commerciali"]
[null,null,0,0]
[null,null,"Decrementi Finanziari","Decrementi Finanziari"]
[null,null,0,0]
[null,null,"svalutazioni, rivalutazioni, ripristini di valore e/o riclassifiche","svalutazioni, rivalutazioni, ripristini di valore e/o riclassifiche"]
[null,null,0,0]
["b) verso imprese collegate",null,"        Variazione Stock","         Variazione Stock"]
[null,null,0,0]
[null,null,"Incrementi Commerciali","Incrementi Commerciali"]
[null,null,0,0]
[null,null,"Incrementi Finanziari","Incrementi Finanziari"]
[null,null,0,0]
[null,null,"Decrementi Commerciali","Decrementi Commerciali"]
[null,null,0,0]
[null,null,"Decrementi Finanziari","Decrementi Finanziari"]
[null,null,0,0]
[null,null,"svalutazioni, rivalutazioni, ripristini di valore e/o riclassifiche","svalutazioni, rivalutazioni, ripristini di valore e/o riclassifiche"]
[null,null,0,0]
["c) verso imprese controllanti",null,"         Variazione Stock","         Variazione Stock"]
[null,null,0,0]
[null,null,"Incrementi Commerciali","Incrementi Commerciali"]
[null,null,0,0]
[null,null,"Incrementi Finanziari","Incrementi Finanziari"]
[null,null,0,0]
[null,null,"Decrementi Commerciali","Decrementi Commerciali"]
[null,null,0,0]
[null,null,"Decrementi Finanziari","Decrementi Finanziari"]
[null,null,0,0]
[null,null,"svalutazioni, rivalutazioni, ripristini di valore e/o riclassifiche","svalutazioni, rivalutazioni, ripristini di valore e/o riclassifiche"]
[null,null,0,0]
["d) verso imprese sottoposte al controllo delle controllanti",null,"    Variazione Stock","    Variazione Stock"]
[null,null,0,0]
[null,null,"Incrementi Commerciali","Incrementi Commerciali"]
[null,null,0,0]
[null,null,"Incrementi Finanziari","Incrementi Finanziari"]
[null,null,0,0]
[null,null,"Decrementi Commerciali","Decrementi Commerciali"]
[null,null,0,0]
[null,null,"Decrementi Finanziari","Decrementi Finanziari"]
[null,null,0,0]
[null,null,"svalutazioni, rivalutazioni, ripristini di valore e/o riclassifiche","svalutazioni, rivalutazioni, ripristini di valore e/o riclassifiche"]
[null,null,0,0]
["d bis) verso altri",null,"       Variazione Stock","     Variazione Stock"]
[null,null,0,0]
[null,null,"Incrementi Commerciali","Incrementi Commerciali"]
[null,null,0,0]
[null,null,"Incrementi Finanziari","Incrementi Finanziari"]
[null,null,0,0]
[null,null,"Decrementi Commerciali","Decrementi Commerciali"]
[null,null,0,0]
[null,null,"Decrementi Finanziari","Decrementi Finanziari"]
[null,null,0,0]
[null,null,"svalutazioni, rivalutazioni, ripristini di valore e/o riclassifiche","svalutazioni, rivalutazioni, ripristini di valore e/o riclassifiche"]
[null,null,0,0]
["3) Altri titoli:"]
["- incremento voce per investimenti",null,"Incrementi","Incrementi"]
[null,null,0,0]
["- decremento voce per cessioni",null,"Decrementi","Decrementi"]
[null,null,0,0]
["- rivalutazioni (svalutazioni) e/o riclassifiche",null,"Incrementi","Incrementi"]
[null,null,0,0]
[null,null,"Decrementi","Decrementi"]
[null,null,0,0]
["4) Strumenti finanziari derivati attivi",null,"        Dettaglio","       Dettaglio"]
[null,null,"Acquisizioni","Acquisizioni"]
[null,null,0,0]
[null,null,"Dismissioni","Dismissioni"]
[null,null,0,0]
[null,null,"     Variazione Stock","     Variazione Stock"]
[null,null,0,0]
["C - ATTIVO CIRCOLANTE"]
["C.I - RIMANENZE",null,2020,2019]
["1) Materie prime, sussidiarie e di consumo",null,"     Dettaglio","     Dettaglio"]
[null,null,"Incrementi","Incrementi"]
[null,null,0,0]
[null,null,"Decrementi","Decrementi"]
[null,null,0,0]
[null,null,"     Variazione Stock","     Variazione Stock"]
[null,null,0,0]
["2) Prodotti in corso lavorazione e semilavorati",null,"     Dettaglio","     Dettaglio"]
[null,null,"Incrementi","Incrementi"]
[null,null,0,0]
[null,null,"Decrementi","Decrementi"]
[null,null,0,0]
[null,null,"     Variazione Stock","     Variazione Stock"]
[null,null,0,0]
["3) Lavori in corso su ordinazione",null,"     Dettaglio","     Dettaglio"]
[null,null,"Incrementi","Incrementi"]
[null,null,0,0]
[null,null,"Decrementi","Decrementi"]
[null,null,0,0]
[null,null,"     Variazione Stock","     Variazione Stock"]
[null,null,0,0]
["4) Prodotti finiti e merci",null,"     Dettaglio","     Dettaglio"]
[null,null,"Incrementi","Incrementi"]
[null,null,0,0]
[null,null,"Decrementi","Decrementi"]
[null,null,0,0]
[null,null,"     Variazione Stock","     Variazione Stock"]
[null,null,0,0]
["5) Acconti",null,"     Dettaglio","     Dettaglio"]
[null,null,"Incrementi","Incrementi"]
[null,null,0,0]
[null,null,"Decrementi","Decrementi"]
[null,null,0,0]
[null,null,"     Variazione Stock","     Variazione Stock"]
[null,null,0,0]
["C.II - CREDITI",null,2020,2019]
["1) verso clienti",null,"     Dettaglio","     Dettaglio"]
[null,null,"Incrementi","Incrementi"]
[null,null,0,0]
[null,null,"Decrementi","Decrementi"]
[null,null,0,0]
[null,null,"     Variazione Stock","     Variazione Stock"]
[null,null,0,0]
[null,null,"Svalutazioni e/o ripristini di valore altri Incrementri (decrementi) per rettifiche","Svalutazioni e/o ripristini di valore altri Incrementri (decrementi) per rettifiche"]
[null,null,0,0]
["2) verso imprese controllate",null,"     Variazione Stock","     Variazione Stock"]
[null,null,0,0]
[null,null,"Incrementi Commerciali","Incrementi Commerciali"]
[null,null,0,0]
[null,null,"Incrementi Finanziari","Incrementi Finanziari"]
[null,null,0,0]
[null,null,"Decrementi Commerciali","Decrementi Commerciali"]
[null,null,0,0]
[null,null,"Decrementi Finanziari","Decrementi Finanziari"]
[null,null,0,0]
[null,null,"svalutazioni, rivalutazioni, ripristini di valore e/o riclassifiche","svalutazioni, rivalutazioni, ripristini di valore e/o riclassifiche"]
[null,null,0,0]
["3) verso imprese collegate",null,"     Variazione Stock","     Variazione Stock"]
[null,null,0,0]
[null,null,"Incrementi Commerciali","Incrementi Commerciali"]
[null,null,0,0]
[null,null,"Incrementi Finanziari","Incrementi Finanziari"]
[null,null,0,0]
[null,null,"Decrementi Commerciali","Decrementi Commerciali"]
[null,null,0,0]
[null,null,"Decrementi Finanziari","Decrementi Finanziari"]
[null,null,0,0]
["4) verso imprese controllanti",null,"     Variazione Stock","     Variazione Stock"]
[null,null,0,0]
[null,null,"Incrementi Commerciali","Incrementi Commerciali"]
[null,null,0,0]
[null,null,"Incrementi Finanziari","Incrementi Finanziari"]
[null,null,0,0]
[null,null,"Decrementi Commerciali","Decrementi Commerciali"]
[null,null,0,0]
[null,null,"Decrementi Finanziari","Decrementi Finanziari"]
[null,null,0,0]
["5) imprese sottoposte al controllo delle controllanti",null,"     Variazione Stock","     Variazione Stock"]
[null,null,0,0]
[null,null,"Incrementi Commerciali","Incrementi Commerciali"]
[null,null,0,0]
[null,null,"Incrementi Finanziari","Incrementi Finanziari"]
[null,null,0,0]
[null,null,"Decrementi Commerciali","Decrementi Commerciali"]
[null,null,0,0]
[null,null,"Decrementi Finanziari","Decrementi Finanziari"]
[null,null,0,0]
["5 bis) Crediti tributari",null,"Incrementi","Incrementi"]
[null,null,0,0]
[null,null,"Decrementi","Decrementi"]
[null,null,0,0]
[null,null,"     Variazione Stock","     Variazione Stock"]
[null,null,0,0]
[null,null,"Altri Incrementri (decrementi) per rettifiche","Altri Incrementri (decrementi) per rettifiche"]
[null,null,0,0]
["5 ter) Imposte anticipate",null,"     Dettaglio","     Dettaglio"]
[null,null,"Concessioni","Concessioni"]
[null,null,0,0]
[null,null,"Riscossioni","Riscossioni"]
[null,null,0,0]
[null,null,"     Variazione Stock","     Variazione Stock"]
[null,null,0,0]
["5 quater) crediti verso altri",null,"     Dettaglio","     Dettaglio"]
[null,null,"Concessioni","Concessioni"]
[null,null,0,0]
[null,null,"Riscossioni","Riscossioni"]
[null,null,0,0]
[null,null,"     Variazione Stock","     Variazione Stock"]
[null,null,0,0]
["di cui:"]
["- crediti verso istituti previdenziali",null,"Incrementi","Incrementi"]
[null,null,0,0]
[null,null,"Decrementi","Decrementi"]
[null,null,0,0]
["- crediti verso banche per operazioni pronti contro termine",null,"Incrementi","Incrementi"]
[null,null,0,0]
[null,null,"Decrementi","Decrementi"]
[null,null,0,0]
["- crediti per cedole maturate su titoli",null,"Incrementi","Incrementi"]
[null,null,0,0]
[null,null,"Decrementi","Decrementi"]
[null,null,0,0]
["- crediti per cauzioni",null,"Incrementi","Incrementi"]
[null,null,0,0]
[null,null,"Decrementi","Decrementi"]
[null,null,0,0]
["- crediti per coperture polizze trattamento di fine rapporto",null,"Incrementi","Incrementi"]
[null,null,0,0]
[null,null,"Decrementi","Decrementi"]
[null,null,0,0]
["- crediti verso il personale dipendente",null,"Incrementi","Incrementi"]
[null,null,0,0]
[null,null,"Decrementi","Decrementi"]
[null,null,0,0]
["- crediti verso obbligazionisti per sottoscrizioni",null,"Incrementi","Incrementi"]
[null,null,0,0]
[null,null,"Decrementi","Decrementi"]
[null,null,0,0]
["- crediti verso fornitori per anticipi"]
["a1) incremento voce per anticipi su acquisizione di beni e servizi",null,"Incrementi","Incrementi"]
[null,null,0,0]
["a2) incremento voce per anticipi su acquisizione di beni impianti e macchinari",null,"Incrementi","Incrementi"]
[null,null,0,0]
["a3) incremento voce per anticipi su acquisizione di beni e opere immobiliari",null,"Incrementi","Incrementi"]
[null,null,0,0]
["b1) decremento voce per recupero anticipi su acquisizione di beni e servizi",null,"Decrementi","Decrementi"]
[null,null,0,0]
["b2) decremento voce per recupero anticipi su acquisizione di impianti e macchinari",null,"Decrementi","Decrementi"]
[null,null,0,0]
["b3) decremento voce per recupero anticipi su acquisizione di beni e opere immobiliari",null,"Decrementi","Decrementi"]
[null,null,0,0]
["- crediti verso factor",null,"Incrementi","Incrementi"]
[null,null,0,0]
[null,null,"Decrementi","Decrementi"]
[null,null,0,0]
["Trasferimenti in conto corrente da Unione Europea e altre istituzioni estere",null,"     Dettaglio","     Dettaglio"]
[null,null,"Incrementi","Incrementi"]
[null,null,0,0]
[null,null,"Decrementi","Decrementi"]
[null,null,0,0]
[null,null,"     Variazione Stock","     Variazione Stock"]
[null,null,0,0]
["Trasferimenti in conto corrente da famiglie e istituzioni sociali",null,"     Dettaglio","     Dettaglio"]
[null,null,"Incrementi","Incrementi"]
[null,null,0,0]
[null,null,"Decrementi","Decrementi"]
[null,null,0,0]
[null,null,"     Variazione Stock","     Variazione Stock"]
[null,null,0,0]
["Trasferimenti in conto corrente da imprese private",null,"     Dettaglio","     Dettaglio"]
[null,null,"Incrementi","Incrementi"]
[null,null,0,0]
[null,null,"Decrementi","Decrementi"]
[null,null,0,0]
[null,null,"     Variazione Stock","     Variazione Stock"]
[null,null,0,0]
["Trasferimenti in conto corrente da imprese pubbliche nazionali",null,"     Dettaglio","     Dettaglio"]
[null,null,"Incrementi","Incrementi"]
[null,null,0,0]
[null,null,"Decrementi","Decrementi"]
[null,null,0,0]
[null,null,"     Variazione Stock","     Variazione Stock"]
[null,null,0,0]
["Trasferimenti in conto corrente da Stato",null,"     Dettaglio","     Dettaglio"]
[null,null,"Incrementi","Incrementi"]
[null,null,0,0]
[null,null,"Decrementi","Decrementi"]
[null,null,0,0]
[null,null,"     Variazione Stock","     Variazione Stock"]
[null,null,0,0]
["Trasferimenti in conto corrente da altri enti dell'amministrazione centrale",null,"     Dettaglio","     Dettaglio"]
[null,null,"Incrementi","Incrementi"]
[null,null,0,0]
[null,null,"Decrementi","Decrementi"]
[null,null,0,0]
[null,null,"     Variazione Stock","     Variazione Stock"]
[null,null,0,0]
["Trasferimenti in conto corrente da Regioni e Provincie Autonome",null,"     Dettaglio","     Dettaglio"]
[null,null,"Incrementi","Incrementi"]
[null,null,0,0]
[null,null,"Decrementi","Decrementi"]
[null,null,0,0]
[null,null,"     Variazione Stock","     Variazione Stock"]
[null,null,0,0]
["Trasferimenti in conto corrente da Province e Città metropolitane",null,"     Dettaglio","     Dettaglio"]
[null,null,"Incrementi","Incrementi"]
[null,null,0,0]
[null,null,"Decrementi","Decrementi"]
[null,null,0,0]
[null,null,"     Variazione Stock","     Variazione Stock"]
[null,null,0,0]
["Trasferimenti in conto corrente da Comuni",null,"     Dettaglio","     Dettaglio"]
[null,null,"Incrementi","Incrementi"]
[null,null,0,0]
[null,null,"Decrementi","Decrementi"]
[null,null,0,0]
[null,null,"     Variazione Stock","     Variazione Stock"]
[null,null,0,0]
["Trasferimenti in conto corrente da A.S.L., Aziende ospedaliere e IRCCS",null,"     Dettaglio","     Dettaglio"]
[null,null,"Incrementi","Incrementi"]
[null,null,0,0]
[null,null,"Decrementi","Decrementi"]
[null,null,0,0]
[null,null,"     Variazione Stock","     Variazione Stock"]
[null,null,0,0]
["Trasferimenti in conto corrente da Consorzi e Forme associative",null,"     Dettaglio","     Dettaglio"]
[null,null,"Incrementi","Incrementi"]
[null,null,0,0]
[null,null,"Decrementi","Decrementi"]
[null,null,0,0]
[null,null,"     Variazione Stock","     Variazione Stock"]
[null,null,0,0]
["Trasferimenti in conto corrente da Aziende, Istituzioni, Società e fondazioni partecipate a livello",null,"     Dettaglio","     Dettaglio"]
[null,null,"Incrementi","Incrementi"]
[null,null,0,0]
[null,null,"Decrementi","Decrementi"]
[null,null,0,0]
[null,null,"     Variazione Stock","     Variazione Stock"]
[null,null,0,0]
["Trasferimenti in conto corrente da Comunità Montane e altre Unioni di enti locali",null,"     Dettaglio","     Dettaglio"]
[null,null,"Incrementi","Incrementi"]
[null,null,0,0]
[null,null,"Decrementi","Decrementi"]
[null,null,0,0]
[null,null,"     Variazione Stock","     Variazione Stock"]
[null,null,0,0]
["Trasferimenti in conto corrente da enti dipendenti",null,"     Dettaglio","     Dettaglio"]
[null,null,"Incrementi","Incrementi"]
[null,null,0,0]
[null,null,"Decrementi","Decrementi"]
[null,null,0,0]
[null,null,"     Variazione Stock","     Variazione Stock"]
[null,null,0,0]
["Trasferimenti in conto corrente da altri enti dell'Amministrazione locale",null,"     Dettaglio","     Dettaglio"]
[null,null,"Incrementi","Incrementi"]
[null,null,0,0]
[null,null,"Decrementi","Decrementi"]
[null,null,0,0]
[null,null,"     Variazione Stock","     Variazione Stock"]
[null,null,0,0]
["Trasferimenti in conto capitale da Unione Europea e altre istituzioni estere",null,"     Dettaglio","     Dettaglio"]
[null,null,"Incrementi","Incrementi"]
[null,null,0,0]
[null,null,"Decrementi","Decrementi"]
[null,null,0,0]
[null,null,"     Variazione Stock","     Variazione Stock"]
[null,null,0,0]
["Trasferimenti in conto capitale da famiglie e istituzioni sociali",null,"     Dettaglio","     Dettaglio"]
[null,null,"Incrementi","Incrementi"]
[null,null,0,0]
[null,null,"Decrementi","Decrementi"]
[null,null,0,0]
[null,null,"     Variazione Stock","     Variazione Stock"]
[null,null,0,0]
["Trasferimenti in conto capitale da imprese private",null,"     Dettaglio","     Dettaglio"]
[null,null,"Incrementi","Incrementi"]
[null,null,0,0]
[null,null,"Decrementi","Decrementi"]
[null,null,0,0]
[null,null,"     Variazione Stock","     Variazione Stock"]
[null,null,0,0]
["Trasferimenti in conto capitale da imprese pubbliche nazionali",null,"     Dettaglio","     Dettaglio"]
[null,null,"Incrementi","Incrementi"]
[null,null,0,0]
[null,null,"Decrementi","Decrementi"]
[null,null,0,0]
[null,null,"     Variazione Stock","     Variazione Stock"]
[null,null,0,0]
["Trasferimenti in conto capitale da Stato",null,"     Dettaglio","     Dettaglio"]
[null,null,"Incrementi","Incrementi"]
[null,null,0,0]
[null,null,"Decrementi","Decrementi"]
[null,null,0,0]
[null,null,"     Variazione Stock","     Variazione Stock"]
[null,null,0,0]
["Trasferimenti in conto capitale da altri enti dell'amministrazione centrale",null,"     Dettaglio","     Dettaglio"]
[null,null,"Incrementi","Incrementi"]
[null,null,0,0]
[null,null,"Decrementi","Decrementi"]
[null,null,0,0]
[null,null,"     Variazione Stock","     Variazione Stock"]
[null,null,0,0]
["Trasferimenti in conto capitale da Regioni e Provincie Autonome",null,"     Dettaglio","     Dettaglio"]
[null,null,"Incrementi","Incrementi"]
[null,null,0,0]
[null,null,"Decrementi","Decrementi"]
[null,null,0,0]
[null,null,"     Variazione Stock","     Variazione Stock"]
[null,null,0,0]
["Trasferimenti in conto capitale da Province e Città metropolitane",null,"     Dettaglio","     Dettaglio"]
[null,null,"Incrementi","Incrementi"]
[null,null,0,0]
[null,null,"Decrementi","Decrementi"]
[null,null,0,0]
[null,null,"     Variazione Stock","     Variazione Stock"]
[null,null,0,0]
["Trasferimenti in conto capitale da Comuni",null,"     Dettaglio","     Dettaglio"]
[null,null,"Incrementi","Incrementi"]
[null,null,0,0]
[null,null,"Decrementi","Decrementi"]
[null,null,0,0]
[null,null,"     Variazione Stock","     Variazione Stock"]
[null,null,0,0]
["Trasferimenti in conto capitale da A.S.L., Aziende ospedaliere e IRCCS",null,"     Dettaglio","     Dettaglio"]
[null,null,"Incrementi","Incrementi"]
[null,null,0,0]
[null,null,"Decrementi","Decrementi"]
[null,null,0,0]
[null,null,"     Variazione Stock","     Variazione Stock"]
[null,null,0,0]
["Trasferimenti in conto capitale da Consorzi e Forme associative",null,"     Dettaglio","     Dettaglio"]
[null,null,"Incrementi","Incrementi"]
[null,null,0,0]
[null,null,"Decrementi","Decrementi"]
[null,null,0,0]
[null,null,"     Variazione Stock","     Variazione Stock"]
[null,null,0,0]
["Trasferimenti in conto capitale da Aziende, Istituzioni, Società e fondazioni partecipate a livello",null,"     Dettaglio","     Dettaglio"]
[null,null,"Incrementi","Incrementi"]
[null,null,0,0]
[null,null,"Decrementi","Decrementi"]
[null,null,0,0]
[null,null,"     Variazione Stock","     Variazione Stock"]
[null,null,0,0]
["Trasferimenti in conto capitale da Comunità Montane e altre Unioni di enti locali",null,"     Dettaglio","     Dettaglio"]
[null,null,"Incrementi","Incrementi"]
[null,null,0,0]
[null,null,"Decrementi","Decrementi"]
[null,null,0,0]
[null,null,"     Variazione Stock","     Variazione Stock"]
[null,null,0,0]
["Trasferimenti in conto capitale da enti dipendenti",null,"     Dettaglio","     Dettaglio"]
[null,null,"Incrementi","Incrementi"]
[null,null,0,0]
[null,null,"Decrementi","Decrementi"]
[null,null,0,0]
[null,null,"     Variazione Stock","     Variazione Stock"]
[null,null,0,0]
["Trasferimenti in conto capitale da altri enti dell'Amministrazione locale",null,"     Dettaglio","     Dettaglio"]
[null,null,"Incrementi","Incrementi"]
[null,null,0,0]
[null,null,"Decrementi","Decrementi"]
[null,null,0,0]
[null,null,"     Variazione Stock","     Variazione Stock"]
[null,null,0,0]
["C.III - ATTIVITA' FINANZIARIE CHE NON COSTITUISCONO IMMOBILIZZAZIONI",null,2020,2019]
["1) Partecipazioni in imprese controllate"]
["- incremento voce per acquisizioni, ivi incluse le ricostituzioni di capitale",null,"Incrementi","Incrementi"]
[null,null,0,0]
["- incremento voce per rivalutazioni",null,"Incrementi","Incrementi"]
[null,null,0,0]
["- decremento voce per cessione",null,"Decrementi","Decrementi"]
[null,null,0,0]
["- decremento voce per svalutazioni",null,"Decrementi","Decrementi"]
[null,null,0,0]
["- incremento (decremento) per riclassifiche",null,"Incrementi","Incrementi"]
[null,null,0,0]
[null,null,"Decrementi","Decrementi"]
[null,null,0,0]
["2) Partecipazioni in imprese collegate"]
["- incremento voce per acquisizioni, ivi incluse le ricostituzioni di capitale",null,"Incrementi","Incrementi"]
[null,null,0,0]
["- incremento voce per rivalutazioni",null,"Incrementi","Incrementi"]
[null,null,0,0]
["- decremento voce per cessione",null,"Decrementi","Decrementi"]
[null,null,0,0]
["- decremento voce per svalutazioni",null,"Decrementi","Decrementi"]
[null,null,0,0]
["- incremento (decremento) per riclassifiche",null,"Incrementi","Incrementi"]
[null,null,0,0]
[null,null,"Decrementi","Decrementi"]
[null,null,0,0]
["3) Partecipazioni in imprese controllanti"]
["- incremento voce per acquisizioni, ivi incluse le ricostituzioni di capitale",null,"Incrementi","Incrementi"]
[null,null,0,0]
["- incremento voce per rivalutazioni",null,"Incrementi","Incrementi"]
[null,null,0,0]
["- decremento voce per cessione",null,"Decrementi","Decrementi"]
[null,null,0,0]
["- decremento voce per svalutazioni",null,"Decrementi","Decrementi"]
[null,null,0,0]
["- incremento (decremento) per riclassifiche",null,"Incrementi","Incrementi"]
[null,null,0,0]
[null,null,"Decrementi","Decrementi"]
[null,null,0,0]
["3 bis) Partecipazioni in imprese sottoposte al controllo delle controllanti"]
["- incremento voce per acquisizioni, ivi incluse le ricostituzioni di capitale",null,"Incrementi","Incrementi"]
[null,null,0,0]
["- incremento voce per rivalutazioni",null,"Incrementi","Incrementi"]
[null,null,0,0]
["- decremento voce per cessione",null,"Decrementi","Decrementi"]
[null,null,0,0]
["- decremento voce per svalutazioni",null,"Decrementi","Decrementi"]
[null,null,0,0]
["- incremento (decremento) per riclassifiche",null,"Incrementi","Incrementi"]
[null,null,0,0]
[null,null,"Decrementi","Decrementi"]
[null,null,0,0]
["4) Altre partecipazioni"]
["- incremento voce per acquisizioni, ivi incluse le ricostituzioni di capitale",null,"Incrementi","Incrementi"]
[null,null,0,0]
["- incremento voce per rivalutazioni",null,"Incrementi","Incrementi"]
[null,null,0,0]
["- decremento voce per cessione",null,"Decrementi","Decrementi"]
[null,null,0,0]
["- decremento voce per svalutazioni",null,"Decrementi","Decrementi"]
[null,null,0,0]
["- incremento (decremento) per riclassifiche",null,"Incrementi","Incrementi"]
[null,null,0,0]
[null,null,"Decrementi","Decrementi"]
[null,null,0,0]
["5) Strumenti finanziari derivati attivi",null,"     Dettaglio","     Dettaglio"]
[null,null,"Acquisizioni","Acquisizioni"]
[null,null,0,0]
[null,null,"Ricostituz. di Capitali","Ricostituz. di Capitali"]
[null,null,0,0]
[null,null,"Dismissioni","Dismissioni"]
[null,null,0,0]
[null,null,"     Variazione Stock","     Variazione Stock"]
[null,null,0,0]
["6) Altri titoli"]
["- incremento voce a seguito di investimenti",null,"Incrementi","Incrementi"]
[null,null,0,0]
["- decremento voce per dismissioni",null,"Decrementi","Decrementi"]
[null,null,0,0]
["- rivalutazioni (svalutazioni) e/o riclassifiche",null,"Incrementi","Incrementi"]
[null,null,0,0]
[null,null,"Decrementi","Decrementi"]
[null,null,0,0]
["C.IV - DISPONIBILITA' LIQUIDE",null,2020,2019]
["1) Depositi bancari e postali",null,"     Dettaglio","     Dettaglio"]
[null,null,"Incrementi","Incrementi"]
[null,null,0,0]
[null,null,"Decrementi","Decrementi"]
[null,null,0,0]
[null,null,"     Variazione Stock","     Variazione Stock"]
[null,null,0,0]
["2) Assegni",null,"     Dettaglio","     Dettaglio"]
[null,null,"Incrementi","Incrementi"]
[null,null,0,0]
[null,null,"Decrementi","Decrementi"]
[null,null,0,0]
[null,null,"     Variazione Stock","     Variazione Stock"]
[null,null,0,0]
["3) Denaro e valori in cassa",null,"     Dettaglio","     Dettaglio"]
[null,null,"Incrementi","Incrementi"]
[null,null,0,0]
[null,null,"Decrementi","Decrementi"]
[null,null,0,0]
[null,null,"     Variazione Stock","     Variazione Stock"]
[null,null,0,0]
["D - RATEI E RISCONTI ATTIVI"]
[null,null,2020,2019]
["Ratei e risconti attivi",null,"     Dettaglio","     Dettaglio"]
[null,null,"Incrementi","Incrementi"]
[null,null,0,0]
[null,null,"Decrementi","Decrementi"]
[null,null,0,0]
[null,null,"     Variazione Stock","     Variazione Stock"]
[null,null,0,0]
["Ratei attivi su redditi da capitale",null,"     Dettaglio","     Dettaglio"]
[null,null,"Incrementi","Incrementi"]
[null,null,0,0]
[null,null,"Decrementi","Decrementi"]
[null,null,0,0]
[null,null,"     Variazione Stock","     Variazione Stock"]
[null,null,0,0]
["Ratei attivi su vendita di beni e servizi",null,"     Dettaglio","     Dettaglio"]
[null,null,"Incrementi","Incrementi"]
[null,null,0,0]
[null,null,"Decrementi","Decrementi"]
[null,null,0,0]
[null,null,"     Variazione Stock","     Variazione Stock"]
[null,null,0,0]
["Ratei attivi su altre entrate",null,"     Dettaglio","     Dettaglio"]
[null,null,"Incrementi","Incrementi"]
[null,null,0,0]
[null,null,"Decrementi","Decrementi"]
[null,null,0,0]
[null,null,"     Variazione Stock","     Variazione Stock"]
[null,null,0,0]
["Risconti attivi su interessi passivi",null,"     Dettaglio","     Dettaglio"]
[null,null,"Incrementi","Incrementi"]
[null,null,0,0]
[null,null,"Decrementi","Decrementi"]
[null,null,0,0]
[null,null,"     Variazione Stock","     Variazione Stock"]
[null,null,0,0]
["Risconti attivi su acquisto di beni e servizi",null,"     Dettaglio","     Dettaglio"]
[null,null,"Incrementi","Incrementi"]
[null,null,0,0]
[null,null,"Decrementi","Decrementi"]
[null,null,0,0]
[null,null,"     Variazione Stock","     Variazione Stock"]
[null,null,0,0]
["Risconti attivi su altre spese",null,"     Dettaglio","     Dettaglio"]
[null,null,"Incrementi","Incrementi"]
[null,null,0,0]
[null,null,"Decrementi","Decrementi"]
[null,null,0,0]
[null,null,"     Variazione Stock","     Variazione Stock"]
[null,null,0,0]
["PASSIVO"]
["A - PATRIMONIO NETTO"]
["A.I - Capitale",null,2020,2019]
["- versamento aumento di capitale",null,"Valore","Valore"]
[null,null,0,0]
["- riduzione capitale esuberante",null,"Valore","Valore"]
[null,null,0,0]
["- riduzione capitale per copertura perdite",null,0,0]
["A.II - Riserva da sovrapprezzo azioni",null,2020,2019]
["- Versamento riserva",null,"Valore","Valore"]
[null,null,0,0]
["- Rimborso riserva",null,"Valore","Valore"]
[null,null,0,0]
["A.III - Riserve di rivalutazione",null,"     Dettaglio","     Dettaglio"]
[null,null,"Incrementi","Incrementi"]
[null,null,0,0]
[null,null,"Decrementi","Decrementi"]
[null,null,0,0]
[null,null,"       Variazione di stock","       Variazione di stock"]
[null,null,0,0]
["A.IV - Riserva legale",null,"     Dettaglio","     Dettaglio"]
[null,null,"Incrementi","Incrementi"]
[null,null,0,0]
[null,null,"Decrementi","Decrementi"]
[null,null,0,0]
[null,null,"       Variazione di stock","       Variazione di stock"]
[null,null,0,0]
["A.V - Riserve statutarie",null,"     Dettaglio","     Dettaglio"]
[null,null,"Incrementi","Incrementi"]
[null,null,0,0]
[null,null,"Decrementi","Decrementi"]
[null,null,0,0]
[null,null,"       Variazione di stock","       Variazione di stock"]
[null,null,0,0]
["A.VI - altre riserve distintamente indicate",null,2020,2019]
["Riserva straordinaria",null,"     Dettaglio","     Dettaglio"]
[null,null,"Incrementi","Incrementi"]
[null,null,0,0]
[null,null,"Decrementi","Decrementi"]
[null,null,0,0]
[null,null,"       Variazione di stock","       Variazione di stock"]
[null,null,0,0]
["Riserva da deroghe ex articolo 2423 codice civile",null,"     Dettaglio","     Dettaglio"]
[null,null,"Incrementi","Incrementi"]
[null,null,0,0]
[null,null,"Decrementi","Decrementi"]
[null,null,0,0]
[null,null,"       Variazione di stock","       Variazione di stock"]
[null,null,0,0]
["Riserva azioni (quote) della società controllante",null,"     Dettaglio","     Dettaglio"]
[null,null,"Incrementi","Incrementi"]
[null,null,0,0]
[null,null,"Decrementi","Decrementi"]
[null,null,0,0]
[null,null,"       Variazione di stock","       Variazione di stock"]
[null,null,0,0]
["Riserva da rivalutazione delle partecipazioni",null,"     Dettaglio","     Dettaglio"]
[null,null,"Incrementi","Incrementi"]
[null,null,0,0]
[null,null,"Decrementi","Decrementi"]
[null,null,0,0]
[null,null,"       Variazione di stock","       Variazione di stock"]
[null,null,0,0]
["Versamenti in conto aumento di capitale",null,"     Dettaglio","     Dettaglio"]
[null,null,"Incrementi","Incrementi"]
[null,null,0,0]
[null,null,"Decrementi","Decrementi"]
[null,null,0,0]
["Versamenti in conto futuro aumento di capitale",null,"     Dettaglio","     Dettaglio"]
[null,null,"Incrementi","Incrementi"]
[null,null,0,0]
[null,null,"Decrementi","Decrementi"]
[null,null,0,0]
[null,null,"       Variazione di stock","       Variazione di stock"]
[null,null,0,0]
["Versamenti in conto capitale",null,"     Dettaglio","     Dettaglio"]
[null,null,"Incrementi","Incrementi"]
[null,null,0,0]
[null,null,"Decrementi","Decrementi"]
[null,null,0,0]
[null,null,"       Variazione di stock","       Variazione di stock"]
[null,null,0,0]
["Versamenti a copertura perdite",null,"     Dettaglio","     Dettaglio"]
[null,null,"Incrementi","Incrementi"]
[null,null,0,0]
[null,null,"Decrementi","Decrementi"]
[null,null,0,0]
["Riserva da riduzione capitale sociale",null,"     Dettaglio","     Dettaglio"]
[null,null,"Incrementi","Incrementi"]
[null,null,0,0]
[null,null,"Decrementi","Decrementi"]
[null,null,0,0]
[null,null,"       Variazione di stock","       Variazione di stock"]
[null,null,0,0]
["Riserva avanzo di fusione",null,"     Dettaglio","     Dettaglio"]
[null,null,"Incrementi","Incrementi"]
[null,null,0,0]
[null,null,"Decrementi","Decrementi"]
[null,null,0,0]
[null,null,"       Variazione di stock","       Variazione di stock"]
[null,null,0,0]
["Riserva per utili su cambi non realizzati",null,"     Dettaglio","     Dettaglio"]
[null,null,"Incrementi","Incrementi"]
[null,null,0,0]
[null,null,"Decrementi","Decrementi"]
[null,null,0,0]
["Riserva da conguaglio utili in corso",null,"     Dettaglio","     Dettaglio"]
[null,null,"Incrementi","Incrementi"]
[null,null,0,0]
[null,null,"Decrementi","Decrementi"]
[null,null,0,0]
[null,null,"       Variazione di stock","       Variazione di stock"]
[null,null,0,0]
["Varie altre riserve",null,"     Dettaglio","     Dettaglio"]
[null,null,"Incrementi","Incrementi"]
[null,null,0,0]
[null,null,"Decrementi","Decrementi"]
[null,null,0,0]
[null,null,"       Variazione di stock","       Variazione di stock"]
[null,null,0,0]
["Differenza da arrotondamento all'unità  di euro",null,"     Dettaglio","     Dettaglio"]
[null,null,"Incrementi","Incrementi"]
[null,null,0,0]
[null,null,"Decrementi","Decrementi"]
[null,null,0,0]
["A.VII - Riserva per operazioni di copertura dei flussi finanziari attesi",null,"     Dettaglio","     Dettaglio"]
[null,null,"Incrementi","Incrementi"]
[null,null,0,0]
[null,null,"Decrementi","Decrementi"]
[null,null,0,0]
["A.VIII - Utili (perdite) portati a nuovo",null,"     Dettaglio","     Dettaglio"]
[null,null,"Incrementi","Incrementi"]
[null,null,0,0]
[null,null,"Decrementi","Decrementi"]
[null,null,0,0]
[null,null,"       Variazione di stock","       Variazione di stock"]
[null,null,0,0]
["A.IX - Utile (perdita) dell'esercizio",null,"     Dettaglio","     Dettaglio"]
[null,null,"Incrementi","Incrementi"]
[null,null,0,0]
[null,null,"Decrementi","Decrementi"]
[null,null,0,0]
[null,null,"       Variazione di stock","       Variazione di stock"]
[null,null,0,0]
["Perdita ripianata nell'esercizio",null,"     Dettaglio","     Dettaglio"]
[null,null,"Incrementi","Incrementi"]
[null,null,0,0]
[null,null,"Decrementi","Decrementi"]
[null,null,0,0]
[null,null,"       Variazione di stock","       Variazione di stock"]
[null,null,0,0]
["A.X - Riserva negativa per azioni proprie in portafoglio",null,"     Dettaglio","     Dettaglio"]
[null,null,"Incrementi","Incrementi"]
[null,null,0,0]
[null,null,"Decrementi","Decrementi"]
[null,null,0,0]
[null,null,"       Variazione di stock","       Variazione di stock"]
[null,null,0,0]
["B - FONDI PER RISCHI E ONERI"]
[null,null,2020,2019]
["1) Fondo per trattamento di quiescenza e oneri simili",null,"Utilizzi per erogazione","Utilizzi per erogazione"]
[null,null,0,0]
[null,null,"Accantonamenti","Accantonamenti"]
[null,null,0,0]
["2) Per imposte, anche differite",null,"Accantonamenti","Accantonamenti"]
[null,null,0,0]
[null,null,"Utilizzi per pagamenti","Utilizzi per pagamenti"]
[null,null,0,0]
["3) Strumenti finanziari derivati passivi",null,"Utilizzi per erogazione","Utilizzi per erogazione"]
[null,null,0,0]
[null,null,"Accantonamenti","Accantonamenti"]
[null,null,0,0]
["4) Altri",null,"Utilizzi acquisizioni di beni e servizi","Utilizzi acquisizioni di beni e servizi"]
[null,null,0,0]
[null,null,"Utilizzi per altri costi correnti","Utilizzi per altri costi correnti"]
[null,null,0,0]
[null,null,"Utilizzi per beni e opere immobiliari","Utilizzi per beni e opere immobiliari"]
[null,null,0,0]
[null,null,"Utilizzi per altri costi in capitale","Utilizzi per altri costi in capitale"]
[null,null,0,0]
[null,null,"Utilizzi per pagamenti","Utilizzi per pagamenti"]
[null,null,0,0]
[null,null,"utilizzi per oneri di ristrutturazione e incentivi all'esodo","utilizzi per oneri di ristrutturazione e incentivi all'esodo"]
[null,null,0,0]
["C - TRATTAMENTO DI FINE RAPPORTO DI LAVORO SUBORDINATO"]
[null,null,2020,2019]
["Trattamento di fine rapporto di lavoro subordinato",null,"Utilizzi per erogazione","Utilizzi per erogazione"]
[null,null,0,0]
[null,null,"Accantonamenti","Accantonamenti"]
[null,null,0,0]
["D - DEBITI"]
[null,null,2020,2019]
["1) Obbligazioni",null,"       Variazione di stock","       Variazione di stock"]
[null,null,0,0]
[null,null,"Emmissioni","Emmissioni"]
[null,null,0,0]
[null,null,"Rimborso","Rimborso"]
[null,null,0,0]
["2) Obbligazioni convertibili",null,"       Variazione di stock","       Variazione di stock"]
[null,null,0,0]
[null,null,"Emmissioni","Emmissioni"]
[null,null,0,0]
[null,null,"Rimborso","Rimborso"]
[null,null,0,0]
[null,null,"Conversione","Conversione"]
[null,null,0,0]
["3) Debiti verso soci per finanziamenti",null,"       Variazione di stock","       Variazione di stock"]
[null,null,0,0]
[null,null,"Rimborso","Rimborso"]
[null,null,0,0]
[null,null,"Erogazioni","Erogazioni"]
[null,null,0,0]
["4) Debiti verso banche",null,"     Dettaglio","     Dettaglio"]
[null,null,"Accensioni","Accensioni"]
[null,null,0,0]
[null,null,"Rimborsi","Rimborsi"]
[null,null,0,0]
[null,null,"       Variazione di stock","       Variazione di stock"]
[null,null,0,0]
["5) Debiti verso altri finanziatori",null,"     Dettaglio","     Dettaglio"]
[null,null,"Accensioni","Accensioni"]
[null,null,0,0]
[null,null,"Rimborsi","Rimborsi"]
[null,null,0,0]
[null,null,"       Variazione di stock","       Variazione di stock"]
[null,null,0,0]
["6) Acconti",null,2020,2019]
["- incremento per anticipi ricevuti da clienti per la fornitura di beni e servizi",null,"Incrementi","Incrementi"]
[null,null,0,0]
["- incremento per anticipi su cessione di immobilizzazioni materiali e immateriali",null,"Incrementi","Incrementi"]
[null,null,0,0]
["- incremento per anticipi su cessione partecipazioni",null,"Incrementi","Incrementi"]
[null,null,0,0]
["- incremento per anticipi su cessione altri investimenti finanziari",null,"Incrementi","Incrementi"]
[null,null,0,0]
["- incremento per fatturato di rata",null,"Incrementi","Incrementi"]
[null,null,0,0]
["- riassorbimento anticipi ricevuti da clienti per la fornitura di beni e servizi",null,"Decrementi","Decrementi"]
[null,null,0,0]
["- riassorbimento anticipi su cessione di immobilizzazioni materiali e immateriali",null,"Valore","Valore"]
[null,null,0,0]
["- riassorbimento anticipi su cessione partecipazioni",null,"Valore","Valore"]
[null,null,0,0]
["- riassorbimento anticipi su cessione altri investimenti finanziari",null,"Valore","Valore"]
[null,null,0,0]
["- riassorbimento del fatturato di rata",null,"Valore","Valore"]
[null,null,0,0]
["7) Debiti verso fornitori di cui:",null,2020,2019]
["- debiti verso verso fornitori di beni e servizi",null,"     Dettaglio","     Dettaglio"]
[null,null,"Accensioni","Accensioni"]
[null,null,0,0]
[null,null,"Rimborsi","Rimborsi"]
[null,null,0,0]
[null,null,"       Variazione di stock","       Variazione di stock"]
[null,null,0,0]
["- debiti verso fornitori di beni d'investimento",null,"     Dettaglio","     Dettaglio"]
[null,null,"Incrementi","Incrementi"]
[null,null,0,0]
[null,null,"Decrementi","Decrementi"]
[null,null,0,0]
[null,null,"       Variazione di stock","       Variazione di stock"]
[null,null,0,0]
["- incremento per acquisti di beni e servizi",null,"Incrementi","Incrementi"]
[null,null,0,0]
["- incremento per acquisti di beni e opere immobiliari",null,"Incrementi","Incrementi"]
[null,null,0,0]
["- incremento per acquisti di beni mobili e macchinari",null,"Incrementi","Incrementi"]
[null,null,0,0]
["- decremento su acquisti di beni e servizi",null,"Decrementi","Decrementi"]
[null,null,0,0]
["- decremento su acquisti di beni mobili e macchinari",null,"Decrementi","Decrementi"]
[null,null,0,0]
["- decremento su acquisti di beni e opere immobiliari",null,"Decrementi","Decrementi"]
[null,null,0,0]
["8) Debiti rappresentati da titoli di credito",null,"     Dettaglio","     Dettaglio"]
[null,null,"Incrementi","Incrementi"]
[null,null,0,0]
[null,null,"Decrementi","Decrementi"]
[null,null,0,0]
["9) Debiti verso imprese controllate",null,2020,2019]
["- incremento debiti per fornitura di beni e servizi",null,"Incrementi","Incrementi"]
[null,null,0,0]
["- incremento debiti per finanziamenti ricevuti",null,"Incrementi","Incrementi"]
[null,null,0,0]
["- decremento debiti per pagamento di beni e servizi",null,"Decrementi","Decrementi"]
[null,null,0,0]
["- decremento debiti per rimborso di finanziamenti",null,"Decrementi","Decrementi"]
[null,null,0,0]
["10) Debiti verso imprese collegate",null,2020,2019]
["- incremento debiti per fornitura di beni e servizi",null,"Incrementi","Incrementi"]
[null,null,0,0]
["- incremento debiti per finanziamenti ricevuti",null,"Incrementi","Incrementi"]
[null,null,0,0]
["- decremento debiti per pagamento di beni e servizi",null,"Decrementi","Decrementi"]
[null,null,0,0]
["- decremento debiti per rimborso di finanziamenti",null,"Decrementi","Decrementi"]
[null,null,0,0]
["11) Debiti verso controllanti",null,2020,2019]
["- incremento debiti per fornitura di beni e servizi",null,"Incrementi","Incrementi"]
[null,null,0,0]
["- incremento debiti per finanziamenti ricevuti",null,"Incrementi","Incrementi"]
[null,null,0,0]
["- decremento debiti per pagamento di beni e servizi",null,"Decrementi","Decrementi"]
[null,null,0,0]
["- decremento debiti per rimborso di finanziamenti",null,"Decrementi","Decrementi"]
[null,null,0,0]
["- decremento debiti per rimborso di finanziamenti",null,"Decrementi","Decrementi"]
[null,null,0,0]
["11 bis) Debiti verso imprese sottoposte al controllo delle controllanti",null,2020,2019]
["- incremento debiti per fornitura di beni e servizi",null,"Incrementi","Incrementi"]
[null,null,0,0]
["- incremento debiti per finanziamenti ricevuti",null,"Incrementi","Incrementi"]
[null,null,0,0]
["- decremento debiti per pagamento di beni e servizi",null,"Decrementi","Decrementi"]
[null,null,0,0]
["12) Debiti tributari",null,"     Dettaglio","     Dettaglio"]
[null,null,"Incrementi","Incrementi"]
[null,null,0,0]
[null,null,"Decrementi","Decrementi"]
[null,null,0,0]
[null,null,"       Variazione di stock","       Variazione di stock"]
[null,null,0,0]
["13) Debiti verso istituti previdenziali e di sicurezza sociale",null,"     Dettaglio","     Dettaglio"]
[null,null,"Incrementi","Incrementi"]
[null,null,0,0]
[null,null,"Decrementi","Decrementi"]
[null,null,0,0]
[null,null,"       Variazione di stock","       Variazione di stock"]
[null,null,0,0]
["13) Debiti verso istituti previdenziali e di sicurezza sociale:",null,2020,2019]
["-debiti verso istituti di previdenza e sicurezza sociale a carico del datore di lavoro",null,"     Dettaglio","     Dettaglio"]
[null,null,"Accensioni","Accensioni"]
[null,null,0,0]
[null,null,"Rimborsi","Rimborsi"]
[null,null,0,0]
[null,null,"       Variazione di stock","       Variazione di stock"]
[null,null,0,0]
["- debiti verso istituti di previdenza e sicurezza sociale a carico del lavoratore",null,"     Dettaglio","     Dettaglio"]
[null,null,"Accensioni","Accensioni"]
[null,null,0,0]
[null,null,"Rimborsi","Rimborsi"]
[null,null,0,0]
[null,null,"       Variazione di stock","       Variazione di stock"]
[null,null,0,0]
["14) Altri debiti",null,2020,2019]
["- incremento debiti verso amministratori e sindaci per emolumenti",null,"Incrementi","Incrementi"]
[null,null,0,0]
["- incremento debiti verso soci per dividendi o altre riserve deliberate",null,"Incrementi","Incrementi"]
[null,null,0,0]
["- incremento debiti verso obbligazionisti per obbligazioni estratte",null,"Incrementi","Incrementi"]
[null,null,0,0]
["- incremento debiti verso dipendenti per retribuzioni maturate",null,"Incrementi","Incrementi"]
[null,null,0,0]
["- decremento debiti verso amministratori e sindaci per emolumenti",null,"Decrementi","Decrementi"]
[null,null,0,0]
["- decremento debiti verso soci per dividendi o altre riserve deliberate",null,"Decrementi","Decrementi"]
[null,null,0,0]
["- decremento debiti verso obbligazionisti per obbligazioni estratte",null,"Decrementi","Decrementi"]
[null,null,0,0]
["- decremento debiti verso dipendenti per retribuzioni maturate",null,"Decrementi","Decrementi"]
[null,null,0,0]
["14) Altri debiti",null,"     Dettaglio","     Dettaglio"]
[null,null,"Accensioni","Accensioni"]
[null,null,0,0]
[null,null,"Rimborsi","Rimborsi"]
[null,null,0,0]
[null,null,"       Variazione di stock","       Variazione di stock"]
[null,null,0,0]
["E - RATEI E RISCONTI PASSIVI"]
[null,null,2020,2019]
["Ratei e risconti passivi",null,"     Dettaglio","     Dettaglio"]
[null,null,"Incrementi","Incrementi"]
[null,null,0,0]
[null,null,"Decrementi","Decrementi"]
[null,null,0,0]
[null,null,"       Variazione di stock","       Variazione di stock"]
[null,null,0,0]
["Ratei passivi su redditi da capitale",null,"     Dettaglio","     Dettaglio"]
[null,null,"Incrementi","Incrementi"]
[null,null,0,0]
[null,null,"Decrementi","Decrementi"]
[null,null,0,0]
[null,null,"       Variazione di stock","       Variazione di stock"]
[null,null,0,0]
["Ratei passivi su vendita di beni e servizi",null,"     Dettaglio","     Dettaglio"]
[null,null,"Incrementi","Incrementi"]
[null,null,0,0]
[null,null,"Decrementi","Decrementi"]
[null,null,0,0]
[null,null,"       Variazione di stock","       Variazione di stock"]
[null,null,0,0]
["Ratei passivi su altre spese",null,"     Dettaglio","     Dettaglio"]
[null,null,"Incrementi","Incrementi"]
[null,null,0,0]
[null,null,"Decrementi","Decrementi"]
[null,null,0,0]
[null,null,"       Variazione di stock","       Variazione di stock"]
[null,null,0,0]
["Risconti passivi su interessi passivi",null,"     Dettaglio","     Dettaglio"]
[null,null,"Incrementi","Incrementi"]
[null,null,0,0]
[null,null,"Decrementi","Decrementi"]
[null,null,0,0]
[null,null,"       Variazione di stock","       Variazione di stock"]
[null,null,0,0]
["Risconti passivi su acquisto di beni e servizi",null,"     Dettaglio","     Dettaglio"]
[null,null,"Incrementi","Incrementi"]
[null,null,0,0]
[null,null,"Decrementi","Decrementi"]
[null,null,0,0]
[null,null,"       Variazione di stock","       Variazione di stock"]
[null,null,0,0]
["Risconti passivi su altre entrate",null,"     Dettaglio","     Dettaglio"]
[null,null,"Incrementi","Incrementi"]
[null,null,0,0]
[null,null,"Decrementi","Decrementi"]
[null,null,0,0]
[null,null,"       Variazione di stock","       Variazione di stock"]
[null,null,0,0]
["Risconti passivi su contributi in conto esercizio:",null,2020,2019]
["Trasferimenti in conto corrente da UE e istituz. estere",null,"     Dettaglio","     Dettaglio"]
[null,null,"Incrementi","Incrementi"]
[null,null,0,0]
[null,null,"Decrementi","Decrementi"]
[null,null,0,0]
["Trasferimenti in conto corrente da famiglie e istitituzioni sociali",null,"     Dettaglio","     Dettaglio"]
[null,null,"Incrementi","Incrementi"]
[null,null,0,0]
[null,null,"Decrementi","Decrementi"]
[null,null,0,0]
["Trasferimenti in conto corrente da imprese private",null,"     Dettaglio","     Dettaglio"]
[null,null,"Incrementi","Incrementi"]
[null,null,0,0]
[null,null,"Decrementi","Decrementi"]
[null,null,0,0]
["Trasferimenti in conto corrente da imprese pubbliche nazionali",null,"     Dettaglio","     Dettaglio"]
[null,null,"Incrementi","Incrementi"]
[null,null,0,0]
[null,null,"Decrementi","Decrementi"]
[null,null,0,0]
["Trasferimenti in conto corrente da Stato",null,"     Dettaglio","     Dettaglio"]
[null,null,"Incrementi","Incrementi"]
[null,null,0,0]
[null,null,"Decrementi","Decrementi"]
[null,null,0,0]
["Trasferimenti in conto corrente da altri enti amministrazione centrale",null,"     Dettaglio","     Dettaglio"]
[null,null,"Incrementi","Incrementi"]
[null,null,0,0]
[null,null,"Decrementi","Decrementi"]
[null,null,0,0]
["Trasferimenti in conto corrente da Regioni e Prov. Autonome",null,"     Dettaglio","     Dettaglio"]
[null,null,"Incrementi","Incrementi"]
[null,null,0,0]
[null,null,"Decrementi","Decrementi"]
[null,null,0,0]
["Trasferimenti in conto corrente da Province e Città metropolitane",null,"     Dettaglio","     Dettaglio"]
[null,null,"Incrementi","Incrementi"]
[null,null,0,0]
[null,null,"Decrementi","Decrementi"]
[null,null,0,0]
["Trasferimenti in conto corrente da Comuni",null,"     Dettaglio","     Dettaglio"]
[null,null,"Incrementi","Incrementi"]
[null,null,0,0]
[null,null,"Decrementi","Decrementi"]
[null,null,0,0]
["Trasferimenti in conto corrente da A.S.L., Az. osp. e IRCCS",null,"     Dettaglio","     Dettaglio"]
[null,null,"Incrementi","Incrementi"]
[null,null,0,0]
[null,null,"Decrementi","Decrementi"]
[null,null,0,0]
["Trasferimenti in conto corrente da Consorzi e Forme associative",null,"     Dettaglio","     Dettaglio"]
[null,null,"Incrementi","Incrementi"]
[null,null,0,0]
[null,null,"Decrementi","Decrementi"]
[null,null,0,0]
["Trasferimenti in conto corrente da Aziende Istituzioni Soc fondazioni part liv.loc",null,"     Dettaglio","     Dettaglio"]
[null,null,"Incrementi","Incrementi"]
[null,null,0,0]
[null,null,"Decrementi","Decrementi"]
[null,null,0,0]
["Trasferimenti in conto corrente da Comunità Montane e Unioni enti locali",null,"     Dettaglio","     Dettaglio"]
[null,null,"Incrementi","Incrementi"]
[null,null,0,0]
[null,null,"Decrementi","Decrementi"]
[null,null,0,0]
["Trasferimenti in conto corrente da enti dipendenti",null,"     Dettaglio","     Dettaglio"]
[null,null,"Incrementi","Incrementi"]
[null,null,0,0]
[null,null,"Decrementi","Decrementi"]
[null,null,0,0]
["Trasferimenti in conto corrente da altri enti Amm.ne locale",null,"     Dettaglio","     Dettaglio"]
[null,null,"Incrementi","Incrementi"]
[null,null,0,0]
[null,null,"Decrementi","Decrementi"]
[null,null,0,0]
["Risconti Passivi su contributi in conto capitale:",null,2020,2019]
["Trasferimenti in conto capitale da Unione Europea e altre istituzioni estere",null,"     Dettaglio","     Dettaglio"]
[null,null,"Incrementi","Incrementi"]
[null,null,0,0]
[null,null,"Decrementi","Decrementi"]
[null,null,0,0]
["Trasferimenti in conto capitale da famiglie e istitituz. sociali",null,"     Dettaglio","     Dettaglio"]
[null,null,"Incrementi","Incrementi"]
[null,null,0,0]
[null,null,"Decrementi","Decrementi"]
[null,null,0,0]
["Trasferimenti in conto capitale da imprese private",null,"     Dettaglio","     Dettaglio"]
[null,null,"Incrementi","Incrementi"]
[null,null,0,0]
[null,null,"Decrementi","Decrementi"]
[null,null,0,0]
["Trasferimenti in conto capitale da imprese pubbliche nazionali",null,"     Dettaglio","     Dettaglio"]
[null,null,"Incrementi","Incrementi"]
[null,null,0,0]
[null,null,"Decrementi","Decrementi"]
[null,null,0,0]
["Trasferimenti in conto capitale da Stato",null,"     Dettaglio","     Dettaglio"]
[null,null,"Incrementi","Incrementi"]
[null,null,0,0]
[null,null,"Decrementi","Decrementi"]
[null,null,0,0]
["Trasferimenti in conto capitale da altri enti amministrazione centrale",null,"     Dettaglio","     Dettaglio"]
[null,null,"Incrementi","Incrementi"]
[null,null,0,0]
[null,null,"Decrementi","Decrementi"]
[null,null,0,0]
["Trasferimenti in conto capitale da Regioni e Prov. Autonome",null,"     Dettaglio","     Dettaglio"]
[null,null,"Incrementi","Incrementi"]
[null,null,0,0]
[null,null,"Decrementi","Decrementi"]
[null,null,0,0]
["Trasferimenti in conto capitale da Province e Città metropolitane",null,"     Dettaglio","     Dettaglio"]
[null,null,"Incrementi","Incrementi"]
[null,null,0,0]
[null,null,"Decrementi","Decrementi"]
[null,null,0,0]
["Trasferimenti in conto capitale da Comunità Montane e Unioni enti loc",null,"     Dettaglio","     Dettaglio"]
[null,null,"Incrementi","Incrementi"]
[null,null,0,0]
[null,null,"Decrementi","Decrementi"]
[null,null,0,0]
["Trasferimenti in conto capitale da Comuni",null,"     Dettaglio","     Dettaglio"]
[null,null,"Incrementi","Incrementi"]
[null,null,0,0]
[null,null,"Decrementi","Decrementi"]
[null,null,0,0]
["Trasferimenti in conto capitale da enti dipendenti",null,"     Dettaglio","     Dettaglio"]
[null,null,"Incrementi","Incrementi"]
[null,null,0,0]
[null,null,"Decrementi","Decrementi"]
[null,null,0,0]
["Trasferimenti in conto capitale da Aziende Ist Soc fon part liv.loc",null,"     Dettaglio","     Dettaglio"]
[null,null,"Incrementi","Incrementi"]
[null,null,0,0]
[null,null,"Decrementi","Decrementi"]
[null,null,0,0]
["Trasferimenti in conto capitale da A.S.L., Az osp e IRCCS",null,"     Dettaglio","     Dettaglio"]
[null,null,"Incrementi","Incrementi"]
[null,null,0,0]
[null,null,"Decrementi","Decrementi"]
[null,null,0,0]
["Trasferimenti in conto capitale da Consorzi e Forme associative",null,"     Dettaglio","     Dettaglio"]
[null,null,"Incrementi","Incrementi"]
[null,null,0,0]
[null,null,"Decrementi","Decrementi"]
[null,null,0,0]
["Trasferimenti in conto capitale da altri enti Amm.ne locale",null,"     Dettaglio","     Dettaglio"]
[null,null,"Incrementi","Incrementi"]
[null,null,0,0]
[null,null,"Decrementi","Decrementi"]
[null,null,0,0]
["CONTO ECONOMICO"]
["A - VALORE DELLA PRODUZIONE"]
[null,null,2020,2019]
["1) Ricavi delle vendite e delle prestazioni",null,"Incrementi","Incrementi"]
[null,null,0,0]
["2) Variazione delle rimanenze di prodotto in corso di lavorazione, semilavorati e finiti",null,0,0]
["3) Variazioni dei lavori in corso su ordinazione",null,0,0]
["4) Incrementi di immobilizzazioni per lavori interni",null,0,0]
["5) altri ricavi e proventi, con separata indicazione dei contributi in conto esercizio:",null,2020,2019]
["Proventi derivanti da attivitA' accessorie"]
["- fitti attivi di terreni, fabbricati, impianti macchinari, ecc.",null,"0,00",0]
["- canoni attivi e royalty da brevetti marchi, diritti d'autore, ecc",null,"0,00",0]
["- ricavi derivanti dalla gestione di aziende agricole",null,0,0]
["- altri",null,0,0]
["plusvalenze di natura non finanziaria"]
["- derivanti da alienazione di cespiti",null,0,0]
["- espropri o nazionalizzazione di beni",null,0,0]
["- operazioni sociali straordinarie",null,0,0]
["- operazioni di riconversione produttiva",null,0,0]
["- ristrutturazione o ridimensionamento produttuivo",null,0,0]
["- acquisizione delle immobilizzazioni materiali a titolo gratuito",null,0,0]
["ripristini di valore (nei limiti del costo)"]
["- acquisizione delle immobilizzazioni materiali a titolo gratuito",null,0,0]
["- di immobilizzazioni materiali e immateriali",null,0,0]
["sopravvenienze e insussistenze attive"]
["- riassorbimento fondi per rischi e oneri rivelatisi eccedenti rispetto agli accantonamenti",null,0,0]
["- rissorbimento fondi imposte eccedenti rispetto agli accantonamenti effettuati",null,0,0]
["- altre sopravvenienze attive non riferite a beni patrimoniali",null,0,0]
["- soravvenienze derivanti da prescrizione di debiti",null,0,0]
["ricavi e proventi diversi di natura non finanziaria"]
["- rimborsi spese",null,0,0]
["- proventi derivanti da operazioni di compravendita con obbligo di retrocessione di beni",null,0,0]
["- componenti reddituali positive derivanti da certificati ambientali",null,0,0]
["- ricavi per l'acquisizione a titolo definitivo di caparre",null,0,0]
["- rimborsi assicurativi e le liberalità ricevute, in denaro o in natura",null,0,0]
["Contributi in conto esercizio (Integrazione dei ricavi attivitA' caratteristica)"]
["Contributo in conto esercizio da Unione Europea e altre istituzioni estere",null,"finalizzati alla integrazione di ricavi caratteristici","finalizzati alla integrazione di ricavi caratteristici"]
[null,null,0,0]
[null,null,"commisurati al costo delle immobilizzazioni (Quota competenza)","commisurati al costo delle immobilizzazioni (Quota competenza)"]
[null,null,0,0]
["Contributo in conto esercizio da famiglie e istituzioni sociali",null,"finalizzati alla integrazione di ricavi caratteristici","finalizzati alla integrazione di ricavi caratteristici"]
[null,null,0,0]
[null,null,"commisurati al costo delle immobilizzazioni (Quota competenza)","commisurati al costo delle immobilizzazioni (Quota competenza)"]
[null,null,0,0]
["Contributo in conto esercizio da imprese private",null,"finalizzati alla integrazione di ricavi caratteristici","finalizzati alla integrazione di ricavi caratteristici"]
[null,null,0,0]
[null,null,"commisurati al costo delle immobilizzazioni (Quota competenza)","commisurati al costo delle immobilizzazioni (Quota competenza)"]
[null,null,0,0]
["Contributo in conto esercizio da imprese pubbliche nazionali",null,"finalizzati alla integrazione di ricavi caratteristici","finalizzati alla integrazione di ricavi caratteristici"]
[null,null,0,0]
[null,null,"commisurati al costo delle immobilizzazioni (Quota competenza)","commisurati al costo delle immobilizzazioni (Quota competenza)"]
[null,null,0,0]
["Contributo in conto esercizio da Stato",null,"finalizzati alla integrazione di ricavi caratteristici","finalizzati alla integrazione di ricavi caratteristici"]
[null,null,0,0]
[null,null,"commisurati al costo delle immobilizzazioni (Quota competenza)","commisurati al costo delle immobilizzazioni (Quota competenza)"]
[null,null,0,0]
["Contributo in conto esercizio da altri enti dell'amministrazione centrale",null,"finalizzati alla integrazione di ricavi caratteristici","finalizzati alla integrazione di ricavi caratteristici"]
[null,null,0,0]
[null,null,"commisurati al costo delle immobilizzazioni (Quota competenza)","commisurati al costo delle immobilizzazioni (Quota competenza)"]
[null,null,0,0]
["Contributo in conto esercizio da Regioni e Provincie Autonome",null,"finalizzati alla integrazione di ricavi caratteristici","finalizzati alla integrazione di ricavi caratteristici"]
[null,null,0,0]
[null,null,"commisurati al costo delle immobilizzazioni (Quota competenza)","commisurati al costo delle immobilizzazioni (Quota competenza)"]
[null,null,0,0]
["Contributo in conto esercizio da Province e Città metropolitane",null,"finalizzati alla integrazione di ricavi caratteristici","finalizzati alla integrazione di ricavi caratteristici"]
[null,null,0,0]
[null,null,"commisurati al costo delle immobilizzazioni (Quota competenza)","commisurati al costo delle immobilizzazioni (Quota competenza)"]
[null,null,0,0]
["Contributo in conto esercizio da Comuni",null,"finalizzati alla integrazione di ricavi caratteristici","finalizzati alla integrazione di ricavi caratteristici"]
[null,null,0,0]
[null,null,"commisurati al costo delle immobilizzazioni (Quota competenza)","commisurati al costo delle immobilizzazioni (Quota competenza)"]
[null,null,0,0]
["Contributo in conto esercizio da A.S.L., Az. ospedaliere e IRCCS",null,"finalizzati alla integrazione di ricavi caratteristici","finalizzati alla integrazione di ricavi caratteristici"]
[null,null,0,0]
[null,null,"commisurati al costo delle immobilizzazioni (Quota competenza)","commisurati al costo delle immobilizzazioni (Quota competenza)"]
[null,null,0,0]
["Contributo in conto esercizio da Consorzi e Forme associative",null,"finalizzati alla integrazione di ricavi caratteristici","finalizzati alla integrazione di ricavi caratteristici"]
[null,null,0,0]
[null,null,"commisurati al costo delle immobilizzazioni (Quota competenza)","commisurati al costo delle immobilizzazioni (Quota competenza)"]
[null,null,0,0]
["Contributo in conto esercizio da Az. Istit. Soc. e fond. part a liv. loc.",null,"finalizzati alla integrazione di ricavi caratteristici","finalizzati alla integrazione di ricavi caratteristici"]
[null,null,0,0]
[null,null,"commisurati al costo delle immobilizzazioni (Quota competenza)","commisurati al costo delle immobilizzazioni (Quota competenza)"]
[null,null,0,0]
["Contributo in conto esercizio da Comunità Mont. e Unioni di enti locali",null,"finalizzati alla integrazione di ricavi caratteristici","finalizzati alla integrazione di ricavi caratteristici"]
[null,null,0,0]
[null,null,"commisurati al costo delle immobilizzazioni (Quota competenza)","commisurati al costo delle immobilizzazioni (Quota competenza)"]
[null,null,0,0]
["Contributo in conto esercizio da enti dipendenti",null,"finalizzati alla integrazione di ricavi caratteristici","finalizzati alla integrazione di ricavi caratteristici"]
[null,null,0,0]
[null,null,"commisurati al costo delle immobilizzazioni (Quota competenza)","commisurati al costo delle immobilizzazioni (Quota competenza)"]
[null,null,0,0]
["Contributo in conto esercizio da altri enti dell'Amministrazione locale",null,"finalizzati alla integrazione di ricavi caratteristici","finalizzati alla integrazione di ricavi caratteristici"]
[null,null,0,0]
[null,null,"commisurati al costo delle immobilizzazioni (Quota competenza)","commisurati al costo delle immobilizzazioni (Quota competenza)"]
[null,null,0,0]
["- altri ricavi e proventi",null,0,0]
["B - COSTI DELLA PRODUZIONE"]
[null,null,2020,2019]
["6) Per materie prime, sussidiarie, di consumo e merci",null,0,0]
["7) Costi per servizi",null,0,0]
["8) Costi per godimento di beni di terzi",null,0,0]
["9) Costi per il personale:",null,2020,2019]
["a) Costi per salari e stipendi",null,0,0]
["b) Costi per oneri sociali",null,0,0]
["c) Trattamento di fine rapporto",null,0,0]
["d) Trattamento di quiescenza e simili",null,0,0]
["e) Altri costi",null,0,0]
["10) Ammortamenti e svalutazioni:",null,2020,2019]
["a) Ammortamento delle immobilizzazioni immateriali",null,0,0]
["b) Ammortamento delle immobilizzazioni materiali",null,0,0]
["c) Altre svalutazioni delle immobilizzazioni",null,0,0]
["d) Svalutazione dei crediti compresi nell'attivo circolante e delle disponibilità liquide",null,0,0]
["11) Variazioni delle rimanenze delle materie prime, sussidiarie , di consumo e merci",null,0,0]
["12) Accantonamenti per rischi",null,0,0]
["13) Altri accantonamenti",null,0,0]
["14) Oneri diversi di gestione",null,0,0]
["C - PROVENTI E ONERI FINANZIARI"]
["15) Proventi di partecipazioni:",null,2020,2019]
["a) da imprese controllate:"]
["- dividendi su partecipazioni",null,"Incrementi","Incrementi"]
[null,null,0,0]
["- plusvalenze da alienazione di partecipazioni iscritte nell'attivo immobilizzato o nell'attivo corrente",null,"Incrementi","Incrementi"]
[null,null,0,0]
["- ricavi da vendita di warrant e di diritti di opzione su titoli partecipativi",null,"Incrementi","Incrementi"]
[null,null,0,0]
["- utili distribuiti da joint venture e consorzi",null,"Incrementi","Incrementi"]
[null,null,0,0]
["b) da imprese collegate:"]
["- dividendi su partecipazioni",null,"Incrementi","Incrementi"]
[null,null,0,0]
["- plusvalenze da alienazione di partecipazioni iscritte nell'attivo immobilizzato o nell'attivo corrente",null,"Incrementi","Incrementi"]
[null,null,0,0]
["- ricavi da vendita di warrant e di diritti di opzione su titoli partecipativi",null,"Incrementi","Incrementi"]
[null,null,0,0]
["- utili distribuiti da joint venture e consorzi",null,"Incrementi","Incrementi"]
[null,null,0,0]
["c) da imprese controllanti:"]
["- dividendi su partecipazioni",null,"Incrementi","Incrementi"]
[null,null,0,0]
["- plusvalenze da alienazione di partecipazioni iscritte nell'attivo immobilizzato o nell'attivo corrente",null,"Incrementi","Incrementi"]
[null,null,0,0]
["- ricavi da vendita di warrant e di diritti di opzione su titoli partecipativi",null,"Incrementi","Incrementi"]
[null,null,0,0]
["- utili distribuiti da joint venture e consorzi",null,"Incrementi","Incrementi"]
[null,null,0,0]
["d) da imprese sottoposte al controllo delle controllanti:"]
["- dividendi su partecipazioni",null,"Incrementi","Incrementi"]
[null,null,0,0]
["- plusvalenze da alienazione di partecipazioni iscritte nell'attivo immobilizzato o nell'attivo corrente",null,"Incrementi","Incrementi"]
[null,null,0,0]
["- ricavi da vendita di warrant e di diritti di opzione su titoli partecipativi",null,"Incrementi","Incrementi"]
[null,null,0,0]
["- utili distribuiti da joint venture e consorzi",null,"Incrementi","Incrementi"]
[null,null,0,0]
["e) da altri:"]
["- dividendi su partecipazioni",null,"Incrementi","Incrementi"]
[null,null,0,0]
["- plusvalenze da alienazione di partecipazioni iscritte nell'attivo immobilizzato o nell'attivo corrente",null,"Incrementi","Incrementi"]
[null,null,0,0]
["- ricavi da vendita di warrant e di diritti di opzione su titoli partecipativi",null,"Incrementi","Incrementi"]
[null,null,0,0]
["- utili distribuiti da joint venture e consorzi",null,"Incrementi","Incrementi"]
[null,null,0,0]
["Eventuali utili in natura distribuiti da imprese partecipate, anche in sede di liquidazione",null,"Incrementi","Incrementi"]
[null,null,0,0]
["Plusvalenze derivanti dalla cessione di azioni della società controllante",null,"Incrementi","Incrementi"]
[null,null,0,0]
["16) Altri proventi finanziari:",null,2020,2019]
["a) da crediti iscritti nelle immobilizzazioni:"]
["- da imprese controllate",null,"Incrementi","Incrementi"]
[null,null,0,0]
[null,null,"Decrementi","Decrementi"]
[null,null,0,0]
["- da imprese collegate",null,"Incrementi","Incrementi"]
[null,null,0,0]
[null,null,"Decrementi","Decrementi"]
[null,null,0,0]
["- da imprese controllanti",null,"Incrementi","Incrementi"]
[null,null,0,0]
[null,null,"Decrementi","Decrementi"]
[null,null,0,0]
["- da imprese sottoposte al controllo delle controllanti",null,"Incrementi","Incrementi"]
[null,null,0,0]
[null,null,"Decrementi","Decrementi"]
[null,null,0,0]
["- da altri",null,0,0]
["b) da titoli iscritti nelle immobilizzazioni che non costituiscono partecipazioni",null,0,0]
["c) da titoli iscritti nell'attivo circolante che non costituiscono partecipazioni",null,0,0]
["d) proventi diversi dai precedenti:"]
["- da imprese controllate",null,"Incrementi","Incrementi"]
[null,null,0,0]
[null,null,"Decrementi","Decrementi"]
[null,null,0,0]
["- da imprese collegate",null,"Incrementi","Incrementi"]
[null,null,0,0]
[null,null,"Decrementi","Decrementi"]
[null,null,0,0]
["- da imprese controllanti",null,"Incrementi","Incrementi"]
[null,null,0,0]
[null,null,"Decrementi","Decrementi"]
[null,null,0,0]
["- da imprese sottoposte al controllo delle controllanti",null,"Incrementi","Incrementi"]
[null,null,0,0]
[null,null,"Decrementi","Decrementi"]
[null,null,0,0]
["- da altri",null,"Incrementi","Incrementi"]
[null,null,0,0]
[null,null,"Decrementi","Decrementi"]
[null,null,0,0]
["17) Interessi e altri oneri finanziari:",null,2020,2019]
["- verso imprese controllate:"]
["-- interessi passivi su finanziamenti o su altri debiti",null,"Decrementi","Decrementi"]
[null,null,0,0]
["-- minusvalenze da alienazione di titoli e partecipazioni iscritti nell'attivo immobilizzato e circolante",null,"Decrementi","Decrementi"]
[null,null,0,0]
["-- altri oneri di natura finanziaria",null,"Decrementi","Decrementi"]
[null,null,0,0]
["- verso imprese collegate"]
["-- interessi passivi su finanziamenti o su altri debiti",null,"Decrementi","Decrementi"]
[null,null,0,0]
["-- minusvalenze da alienazione di titoli e partecipazioni iscritti nell'attivo immobilizzato e circolante",null,"Decrementi","Decrementi"]
[null,null,0,0]
["-- altri oneri di natura finanziaria",null,"Decrementi","Decrementi"]
[null,null,0,0]
["- verso imprese controllanti"]
["-- interessi passivi su finanziamenti o su altri debiti",null,"Decrementi","Decrementi"]
[null,null,0,0]
["-- minusvalenze da alienazione di titoli e partecipazioni iscritti nell'attivo immobilizzato e circolante",null,"Decrementi","Decrementi"]
[null,null,0,0]
["-- altri oneri di natura finanziaria",null,"Decrementi","Decrementi"]
[null,null,0,0]
["- verso imprese sottoposte al controllo delle controllanti",null,0,0]
["- altri"]
["-- interessi passivi su finanziamenti o su altri debiti",null,"Decrementi","Decrementi"]
[null,null,0,0]
["-- minusvalenze da alienazione di titoli e partecipazioni iscritti nell'attivo immobilizzato e circolante",null,"Decrementi","Decrementi"]
[null,null,0,0]
["-- altri oneri di natura finanziaria",null,"Decrementi","Decrementi"]
[null,null,0,0]
["Interessi passivi su dilazioni ottenute da forniriu ed interessi di mora",null,"Decrementi","Decrementi"]
[null,null,0,0]
["Interessi passivi su debiti maturali nell'esercizio",null,"Decrementi","Decrementi"]
[null,null,0,0]
["Perdite realizzate su crediti iscritti nelle immobilizzazioni per la parte che eccedente la svalutazione",null,"Decrementi","Decrementi"]
[null,null,0,0]
["17-bis) Utile e perdite su cambi",null,0,0]
["D - RETTIFICHE DI VALORE DI ATTIVITA' E PASSIVITA' FINANZIARIE"]
["Rivalutazioni:",null,2020,2019]
["a) di partecipazioni",null,0,0]
["b) di immobilizzazioni finanziarie che non costituiscono partecipazioni",null,0,0]
["c) di titoli iscritti all'attivo circolante che non costituiscono partecipazioni",null,0,0]
["d) di strumenti finanziari derivati",null,0,0]
["Svalutazioni:",null,2020,2019]
["a) di partecipazioni",null,0,0]
["b) di immobilizzazioni finanziarie che non costituiscono partecipazioni",null,0,0]
["c) di titoli iscritti all'attivo circolante che non costituiscono partecipazioni",null,0,0]
["d) di strumenti finanziari derivati",null,0,0]
["G.20 - IMPOSTE SUL REDDITO DI ESERCIZIO"]
[null,null,2020,2019]
["- imposte correnti",null,0,0]
["- imposte differite",null,0,0]
["- imposte anticipate",null,0,0]
["- imposte relative a esercizi precedenti",null,0,0]
["proventi (oneri) da adesione al regime di consolidato fiscale / trasparenza fiscale",null,"Incrementi","Incrementi"]
[null,null,0,0]

{"sheet":"rendiconto fin.metodo indiretto","index":3,"n_rows":134,"n_cols":5,"rows_kept":134,"cut":false,"hidden":false,"merged":[[116,0,116,4],[117,0,117,1],[122,0,122,1],[94,0,94,1],[101,0,101,1],[104,0,104,1],[107,0,107,4],[108,0,108,1],[113,0,113,1],[89,0,89,1],[47,0,47,1],[56,0,56,1],[59,0,59,1],[61,0,61,4],[62,0,62,1],[66,0,66,1],[71,0,71,1],[76,0,76,1],[81,0,81,1],[86,0,86,1],[88,0,88,4],[46,0,46,4],[2,0,2,4],[3,0,3,1],[12,0,12,1],[14,0,14,4],[15,0,15,1],[22,0,22,1],[25,0,25,1],[27,0,27,4],[28,0,28,1],[41,0,41,1],[44,0,44,1]]}
["Nome Ente - Bilancio 2020 (i valori sono espressi in migliaia di euro)"]
[]
["A.1 - A. Flussi finanziari derivanti dall'attività operativa"]
[null,null,2020,2019,"Variazione"]
["Utile (perdita) dell'esercizio",null,null,null,0]
["Imposte sul reddito",null,null,null,0]
["Interessi Passivi",null,null,null,0]
["(Interessi Attivi)",null,null,null,0]
["(Dividendi)",null,null,null,0]
["(Plusvalenze da cessione di attività)",null,null,null,0]
["Minusvalenze da cessione di attività",null,null,null,0]
["1. Utile (perdita) dell'esercizio prima d'imposte sul reddito, interessi, dividendi e plusvalenze/mi",null,null,null,0]
["1. Utile (perdita) dell'esercizio prima d'imposte sul reddito, interessi, dividendi e plusvalenze/mi ∑",null,0,0,0]
[]
["A.1.2 - Rettifiche per elementi non monetari che non hanno avuto contropartita nel capitale circolante netto"]
[null,null,2020,2019,"Variazione"]
["Accantonamenti ai fondi",null,null,null,0]
["Ammortamenti delle immobilizzazioni",null,null,null,0]
["Svalutazioni per perdite durevoli di valore",null,null,null,0]
["Rettifiche di valore di attività e passività finanziarie di strumenti finanziari derivati che non co",null,null,null,0]
["Altre rettifiche per elementi non monetari",null,null,null,0]
["Totale rettifiche per elementi non monetari che non hanno avuto contropartita nel cap. circolante",null,null,null,0]
["Totale rettifiche per elementi non monetari che non hanno avuto contropartita nel cap. circolante ∑",null,0,0,0]
[]
["2.Flusso finanziario prima delle variazioni di capitale circolante netto",null,null,null,0]
["2.Flusso finanziario prima delle variazioni di capitale circolante netto ∑",null,0,0,0]
[]
["A.2.2 - Variazioni del capitale circolante netto:"]
[null,null,2020,2019,"Variazione"]
["Decremento delle rimanenze",null,null,null,0]
["(Incremento delle rimanenze)",null,null,null,0]
["Decremento dei crediti verso clienti",null,null,null,0]
["(Incremento dei crediti verso i clienti)",null,null,null,0]
["Incremento dei debiti verso fornitori",null,null,null,0]
["(Decremento dei debiti verso fornitori)",null,null,null,0]
["(Incremento ratei e risconti attivi)",null,null,null,0]
["Decremento ratei e risconti attivi",null,null,null,0]
["Incremento ratei e risconti passivi",null,null,null,0]
["(Decremento ratei e risconti passivi)",null,null,null,0]
["Altre variazioni del capitale circolante netto",null,null,null,0]
["Totale variazioni del capitale circolante netto",null,null,null,0]
["Totale variazioni del capitale circolante netto ∑",null,0,0,0]
[]
["3. Flusso finanziario dopo le variazioni del capitale circolante netto",null,null,null,0]
["3. Flusso finanziario dopo le variazioni del capitale circolante netto ∑",null,0,0,0]
[]
["A.3.2 - Altre rettifiche:"]
[null,null,2020,2019,"Variazione"]
["Interessi incassati",null,null,null,0]
["(Interessi pagati)",null,null,null,0]
["(Imposte sul reddito pagate)",null,null,null,0]
["Dividendi incassati",null,null,null,0]
["(Utilizzo dei fondi)",null,null,null,0]
["Altri incassi",null,null,null,0]
["(Altri Pagamenti)",null,null,null,0]
["Totale altre rettifiche",null,null,null,0]
["Totale altre rettifiche ∑",null,0,0,0]
[]
["Flusso finanziario dell'attività operativa (A)",null,null,null,0]
["Flusso finanziario dell'attività operativa (A) ∑",null,0,0,0]
[]
["B.1 - B. Flussi finanziari derivanti dall'attività d'investimento"]
[null,null,2020,2019,"Variazione"]
["(Imm. materiali - Investimenti)",null,null,null,0]
["Imm. materiali - Disinvestimenti",null,null,null,0]
["Totale Immobilizzazioni materiali",null,null,null,0]
["Totale Immobilizzazioni materiali ∑",null,0,0,0]
[]
["(Imm. immateriali - Investimenti)",null,null,null,0]
["Imm. immateriali - Disinvestimenti",null,null,null,0]
["Totale Immobilizzazioni immateriali",null,null,null,0]
["Totale Immobilizzazioni immateriali ∑",null,0,0,0]
[]
["(Imm. finanziarie - Investimenti)",null,null,null,0]
["Imm. finanziarie - Disinvestimenti",null,null,null,0]
["Totale Immobilizzazioni finanziarie",null,null,null,0]
["Totale Immobilizzazioni finanziarie ∑",null,0,0,0]
[]
["(Att. finanziarie non immob. - Investimenti)",null,null,null,0]
["Att. finanziarie non immob. - Disinvestimenti",null,null,null,0]
["Totale Attività finanziarie non Immobilizzate",null,null,null,0]
["Totale Attività finanziarie non Immobilizzate ∑",null,0,0,0]
[]
["(Acquisizione di rami d'azienda al netto delle disponibilità liquide)",null,null,null,0]
["Cessione di rami d'azienda al netto delle disponibilità liquide",null,null,null,0]
["Flusso finanziario dell'attività di investimento (B)",null,null,null,0]
["Flusso finanziario dell'attività di investimento (B) ∑",null,0,0,0]
[]
["C.1 - C. Flussi finanziari derivanti dall'attività di finanziamento"]
["Mezzi di terzi:",null,2020,2019,"Variazione"]
["Incremento debiti a breve verso banche",null,null,null,0]
["(Decremento debiti a breve verso banche)",null,null,null,0]
["Accensione finanziamenti",null,null,null,0]
["(Rimborso finanziamenti)",null,null,null,0]
["Mezzi propri:",null,2020,2019,"Variazione"]
["Aumento di capitale a pagamento",null,null,null,0]
["(Rimborso di capitale)",null,null,null,0]
["Cessione di azioni proprie",null,null,null,0]
["(Acquisto di azioni proprie)",null,null,null,0]
["(Dividendi e acconti su dividendi pagati)",null,null,null,0]
["Flusso finanziario dell'attività di finanziamento (C)",null,null,null,0]
["Flusso finanziario dell'attività di finanziamento (C) ∑",null,0,0,0]
[]
["Incremento (decremento) delle disponibilità liquide (A ± B ± C)",null,null,null,0]
["Incremento (decremento) delle disponibilità liquide (A ± B ± C) ∑",null,0,0,0]
[]
["Effetto cambi sulle disponibilità liquide",null,null,null,0]
["E - Disponibilità liquide all'inizio dell'esercizio"]
[null,null,2020,2019,"Variazione"]
["Depositi bancari e postali",null,null,null,0]
["Assegni",null,null,null,0]
["Denaro e valori in cassa",null,null,null,0]
["Totale disponibilità liquide a inizio esercizio",null,null,null,0]
["Totale disponibilità liquide a inizio esercizio ∑",null,0,0,0]
[]
["Di cui non liberamente utilizzabili",null,null,null,0]
["F - Disponibilità liquide alla fine dell'esercizio"]
[null,null,2020,2019,"Variazione"]
["Depositi bancari e postali",null,null,null,0]
["Assegni",null,null,null,0]
["Denaro e valori in cassa",null,null,null,0]
["Totale disponibilità liquide a fine esercizio",null,null,null,0]
["Totale disponibilità liquide a fine esercizio ∑",null,0,0,0]
[]
["Di cui non liberamente utilizzabili",null,null,null,0]
[]
[]
[]
[]
[]
[]
["BILANCIO NOTA INTEGRATIVA RENDICONTO FINANZIARIO SCHEDA CPT"]
["RENDICONTO FINANZIARIO - METODO INDIRETTO"]
["RENDICONTO FINANZIARIO - METODO DIRETTO"]

{"sheet":"rendiconto fin.metodo diretto","index":4,"n_rows":68,"n_cols":5,"rows_kept":68,"cut":false,"hidden":false,"merged":[[40,0,40,4],[41,0,41,1],[52,0,52,4],[53,0,53,1],[23,0,23,4],[24,0,24,1],[30,0,30,4],[31,0,31,1],[34,0,34,1],[37,0,37,1],[17,0,17,1],[2,0,2,4],[3,0,3,1],[5,0,5,1],[9,0,9,1],[16,0,16,4]]}
["Nome Ente - Bilancio 2020 (i valori sono espressi in migliaia di euro)"]
[]
["RFD.28 - C) Flussi finanziari derivanti dall'attività di finanziamento"]
[null,null,2020,2019,"Variazione"]
["Effetto cambi sulle disponibilità liquide",null,null,null,0]
["Mezzi di terzi",null,2020,2019,"Variazione"]
["Incremento/(Decremento) debiti a breve verso banche",null,null,null,0]
["Accensione finanziamenti",null,null,null,0]
["(Rimborso finanziamenti)",null,null,null,0]
["Mezzi propri",null,2020,2019,"Variazione"]
["Aumento di capitale a pagamento",null,null,null,0]
["(Rimborso di capitale)",null,null,null,0]
["Cessione/(Acquisto) di azioni proprie",null,null,null,0]
["(Dividendi e acconti su dividendi pagati)",null,null,null,0]
["Flusso finanziario dell'attività di finanziamento (C)",null,null,null,0]
["Incremento (decremento) delle disponibilità liquide (A ± B ± C)",null,null,null,0]
["RFD.41 - Disponibilità liquide a inizio esercizio"]
[null,null,2020,2019,"Variazione"]
["Depositi bancari e postali",null,null,null,0]
["Assegni",null,null,null,0]
["Danaro e valori in cassa",null,null,null,0]
["Totale disponibilità liquide a inizio esercizio",null,null,null,0]
["Di cui non liberamente utilizzabili",null,null,null,0]
["RFD.47 - Disponibilità liquide a fine esercizio"]
[null,null,2020,2019,"Variazione"]
["Depositi bancari e postali",null,null,null,0]
["Assegni",null,null,null,0]
["Danaro e valori in cassa",null,null,null,0]
["Totale disponibilità liquide a fine esercizio",null,null,null,0]
["Di cui non liberamente utilizzabili",null,null,null,0]
["RFD.12 - B) Flussi finanziari derivanti dall'attività d'investimento"]
["Immobilizzazioni materiali",null,2020,2019,"Variazione"]
["(Investimenti)",null,null,null,0]
["Disinvestimenti",null,null,null,0]
["Immobilizzazioni immateriali",null,2020,2019,"Variazione"]
["(Investimenti)",null,null,null,0]
["Disinvestimenti",null,null,null,0]
["Immobilizzazioni finanziarie",null,2020,2019,"Variazione"]
["(Investimenti)",null,null,null,0]
["Disinvestimenti",null,null,null,0]
["RFD.1 - A) Flussi finanziari derivanti dall'atività operativa (metodo diretto)"]
[null,null,2020,2019,"Variazione"]
["Incassi da clienti",null,null,null,0]
["Altri incassi",null,null,null,0]
["(Pagamenti a fornitori per acquisti)",null,null,null,0]
["(Pagamenti a fornitori per servizi)",null,null,null,0]
["(Pagamenti al personale)",null,null,null,0]
["(Altri pagamenti)",null,null,null,0]
["(Imposte pagate sul reddito)",null,null,null,0]
["Interessi incassati/(pagati)",null,null,null,0]
["Dividendi incassati",null,null,null,0]
["Flusso finanziario dell'attività operativa (A)",null,null,null,0]
["RFD.22 - Attività finanziarie non immobilizzate"]
[null,null,2020,2019,"Variazione"]
["Flusso finanziario dell'attività di investimento (B)",null,null,null,0]
["(Investimenti)",null,null,null,0]
["Disinvestimenti",null,null,null,0]
["(Acquisizione di rami d'azienda al netto delle disponibilità liquide)",null,null,null,0]
["Cessione di rami d'azienda al netto delle disponibilità liquide",null,null,null,0]
[]
[]
[]
[]
[]
[]
["BILANCIO NOTA INTEGRATIVA RENDICONTO FINANZIARIO SCHEDA CPT"]
["RENDICONTO FINANZIARIO - METODO INDIRETTO"]
["RENDICONTO FINANZIARIO - METODO DIRETTO"]